Workbook

Sheet Steps in Analysis
B2: 1. Compile the financial statements | H2: Viedo
B3: 2. Define the capacity quantity | H3: How to copy and paste special with operations
B4: 3. Work through prices and quantity | H4: Graph key assumptions by using TRUE
B5: 4. Develop drivers of operating expense | H5: Forecasting Method
H6: Conditional Formatting
H8: Working with existing depreciation

Sheet Summary
A5: Custom Scenario Inputs
A6: ='Scenario Analysis'!C41 -> Planes Grounded
A7: ='Scenario Analysis'!C42 -> Price Increase
A8: ='Scenario Analysis'!C43 -> Other Revenues | D8: ='Scenario Analysis'!$F$28 -> 39000
A9: ='Scenario Analysis'!C44 -> Flight Expense per Hour
A10: ='Scenario Analysis'!C45 -> Maint per Hour
A11: ='Scenario Analysis'!C46 -> Fuel Expense per Hour
A12: ='Scenario Analysis'!C47 -> SG&A per Revenue
A13: ='Scenario Analysis'!C48 -> Bad Debt Expense | D13: ='Scenario Analysis'!K29 -> 0.005
A14: ='Scenario Analysis'!C49 -> Cap Exp - Maintenance
A15: ='Scenario Analysis'!C50 -> A/R to Revenues | D15: ='Scenario Analysis'!M29 -> 0.15
A16: ='Scenario Analysis'!C51 -> A/P to Expenses | D16: ='Scenario Analysis'!N29 -> 0.12
A17: ='Scenario Analysis'!C52 -> Interest Rate | D17: ='Scenario Analysis'!O29 -> 0.085

Sheet Scenario Analysis
A1: Comparison | D1: 1 | E1: =INDEX(C10:C13,D1) -> Company Case | T1: col input | U1: =COLUMN(P12) -> 16
A2: Sensitivity | D2: 3 | E2: =INDEX(C10:C13,D2) -> Low Case | T2: Row input | U2: =ROW(Q9) -> 9
T3: Start row | U3: =ROW(Q10) -> 10
T4: End row | U4: =ROW(C25) -> 25
E5: Code Number | G5: 18 | T5: start col | U5: =COLUMN(Q10) -> 17
T6: end col | U6: =COLUMN(X9) -> 24
D7: 1 | E7: =D7+1 -> 2 | F7: =E7+1 -> 3 | G7: 4 | H7: 5 | I7: 6 | J7: 7 | K7: 8 | L7: 9 | M7: 10 | N7: 11 | O7: 12 | Q7: 1998 | R7: =Q7+1 -> 1999 | S7: =R7+1 -> 2000 | T7: 2001 | U7: 2002 | V7: 2003 | W7: 2004 | X7: 2005
D8: Planes Grounded | E8: Price Increase | F8: Other Revenues | G8: Flight Expense per Hour | H8: Maint per Hour | I8: Fuel Expense per Hour | J8: SG&A per Revenue | K8: Bad Debt Expense | L8: Cap Exp - Maintenance | M8: A/R to Revenues | N8: A/P to Expenses | O8: Interest Rate | Q8: ='Financial Model'!$K$380 &" " &Q7 -> Balance of New Debt 1998 | R8: ='Financial Model'!$K$380 &" " &R7 -> Balance of New Debt 1999 | S8: ='Financial Model'!$K$380 &" " &S7 -> Balance of New Debt 2000 | T8: ='Financial Model'!$K$380 &" " &T7 -> Balance of New Debt 2001 | U8: ='Financial Model'!$K$380 &" " &U7 -> Balance of New Debt 2002 | V8: ='Financial Model'!$K$380 &" " &V7 -> Balance of New Debt 2003 | W8: ='Financial Model'!$K$380 &" " &W7 -> Balance of New Debt 2004 | X8: ='Financial Model'!$K$380 &" " &X7 -> Balance of New Debt 2005
Q9: =IFERROR('Financial Model'!P382,FALSE) -> 61222.42205 | R9: =IFERROR('Financial Model'!Q382,FALSE) -> 14273.38629 | S9: =IFERROR('Financial Model'!R382,FALSE) -> 0 | T9: =IFERROR('Financial Model'!S382,FALSE) -> 0 | U9: =IFERROR('Financial Model'!T382,FALSE) -> 0 | V9: =IFERROR('Financial Model'!U382,FALSE) -> 0 | W9: =IFERROR('Financial Model'!V382,FALSE) -> 0 | X9: =IFERROR('Financial Model'!W382,FALSE) -> 0
C10: Company Case | D10: 1 | E10: 1 | F10: 50000 | G10: 1 | H10: 1 | I10: 1 | J10: 1 | K10: 0.005 | L10: 1 | M10: 0.15 | N10: 0.12 | O10: 0.095 | P10: 1 | Q10: 1.590496465 | R10: 2.429958828 | S10: 3.157833096 | T10: 3.608962108 | U10: 3.99219744 | V10: FALSE | W10: FALSE | X10: FALSE
C11: Base Case | D11: 2 | E11: 2 | F11: 48000 | G11: 2 | H11: 2 | I11: 2 | J11: 2 | K11: 0.0055 | L11: 2 | M11: 0.16 | N11: 0.11 | O11: 0.095 | P11: =P10+1 -> 2 | Q11: 0.8031912307 | R11: 1.170473864 | S11: 1.476257183 | T11: 1.614247734 | U11: 1.804644947 | V11: FALSE | W11: FALSE | X11: FALSE
C12: Low Case | D12: 3 | E12: 3 | F12: 45000 | G12: 3 | H12: 3 | I12: 3 | J12: 3 | K12: 0.006 | L12: 3 | M12: 0.17 | N12: 0.1 | O12: 0.1 | P12: =P11+1 -> 3 | Q12: 0.1979928845 | R12: 0.2645265138 | S12: 0.01772276406 | T12: 0.166147906 | U12: 0.05066242855 | V12: 0.3914666857 | W12: 0.647450207 | X12: 0.6641175071
C13: Worst Case | D13: 4 | E13: 3 | F13: 40000 | G13: 4 | H13: 4 | I13: 4 | J13: 4 | K13: 0.0062 | L13: 4 | M13: 0.18 | N13: 0.09 | O13: 0.11 | P13: 4 | Q13: -0.1490029687 | R13: -0.3089667654 | S13: -0.4595633658 | T13: -0.2795361877 | U13: -0.3233581634 | V13: -0.2778850653 | W13: -0.07382418032 | X13: -0.02180901601
B14: 1 | C14: =TRANSPOSE(D8:O8)&" "&$E$2&" "&" vs "&E1 -> Planes Grounded Low Case vs Company Case | D14: =IF(D$7=$B14,OFFSET(D$10,$D$2-1,0),OFFSET(D$10,$D$1-1,0)) -> 3 | E14: 1 | F14: 50000 | G14: 1 | H14: 1 | I14: 1 | J14: 1 | K14: 0.005 | L14: 1 | M14: 0.15 | N14: 0.12 | O14: 0.095 | P14: 5 | Q14: 1.497190725 | R14: 2.271010169 | S14: 2.962034907 | T14: 3.391836942 | U14: 3.752809537 | V14: FALSE | W14: FALSE | X14: FALSE
B15: =B14+1 -> 2 | C15: Price Increase Low Case vs Company Case | D15: 1 | E15: 3 | F15: 50000 | G15: 1 | H15: 1 | I15: 1 | J15: 1 | K15: 0.005 | L15: 1 | M15: 0.15 | N15: 0.12 | O15: 0.095 | P15: 6 | Q15: 1.347409027 | R15: 1.660100215 | S15: 1.719185526 | T15: 1.961985107 | U15: 2.076704092 | V15: FALSE | W15: FALSE | X15: FALSE
B16: =B15+1 -> 3 | C16: Other Revenues Low Case vs Company Case | D16: 1 | E16: 1 | F16: 45000 | G16: 1 | H16: 1 | I16: 1 | J16: 1 | K16: 0.005 | L16: 1 | M16: 0.15 | N16: 0.12 | O16: 0.095 | P16: 7 | Q16: 1.513967807 | R16: 2.32450094 | S16: 3.058169667 | T16: 3.499189959 | U16: 3.870515765 | V16: FALSE | W16: FALSE | X16: FALSE
B17: 4 | C17: Flight Expense per Hour Low Case vs Company Case | D17: 1 | E17: 1 | F17: 50000 | G17: 3 | H17: 1 | I17: 1 | J17: 1 | K17: 0.005 | L17: 1 | M17: 0.15 | N17: 0.12 | O17: 0.095 | P17: 8 | Q17: 1.272064411 | R17: 1.932244815 | S17: 2.638770699 | T17: 3.112188181 | U17: 3.483424307 | V17: FALSE | W17: FALSE | X17: FALSE
B18: 5 | C18: Maint per Hour Low Case vs Company Case | D18: 1 | E18: 1 | F18: 50000 | G18: 1 | H18: 3 | I18: 1 | J18: 1 | K18: 0.005 | L18: 1 | M18: 0.15 | N18: 0.12 | O18: 0.095 | P18: 9 | Q18: 1.112848384 | R18: 1.820464707 | S18: 2.28580755 | T18: 2.814123825 | U18: 3.178160427 | V18: FALSE | W18: FALSE | X18: FALSE
B19: 6 | C19: Fuel Expense per Hour Low Case vs Company Case | D19: 1 | E19: 1 | F19: 50000 | G19: 1 | H19: 1 | I19: 3 | J19: 1 | K19: 0.005 | L19: 1 | M19: 0.15 | N19: 0.12 | O19: 0.095 | P19: 10 | Q19: 1.590496465 | R19: 2.429958828 | S19: 3.157833096 | T19: 3.608962108 | U19: 3.99219744 | V19: FALSE | W19: FALSE | X19: FALSE
B20: 7 | C20: SG&A per Revenue Low Case vs Company Case | D20: 1 | E20: 1 | F20: 50000 | G20: 1 | H20: 1 | I20: 1 | J20: 3 | K20: 0.005 | L20: 1 | M20: 0.15 | N20: 0.12 | O20: 0.095 | P20: 11 | Q20: 1.555289242 | R20: 2.3505845 | S20: 3.032372352 | T20: 3.477008939 | U20: 3.85367853 | V20: FALSE | W20: FALSE | X20: FALSE
B21: 8 | C21: Bad Debt Expense Low Case vs Company Case | D21: 1 | E21: 1 | F21: 50000 | G21: 1 | H21: 1 | I21: 1 | J21: 1 | K21: 0.006 | L21: 1 | M21: 0.15 | N21: 0.12 | O21: 0.095 | P21: 12 | Q21: 1.583336415 | R21: 2.419966596 | S21: 3.148891987 | T21: 3.599558309 | U21: 3.982325726 | V21: FALSE | W21: FALSE | X21: FALSE
B22: 9 | C22: Cap Exp - Maintenance Low Case vs Company Case | D22: 1 | E22: 1 | F22: 50000 | G22: 1 | H22: 1 | I22: 1 | J22: 1 | K22: 0.005 | L22: 3 | M22: 0.15 | N22: 0.12 | O22: 0.095 | P22: 13 | Q22: 1.369976675 | R22: 2.136704212 | S22: 2.877677454 | T22: 3.407281435 | U22: 3.553841275 | V22: FALSE | W22: FALSE | X22: FALSE
B23: 10 | C23: A/R to Revenues Low Case vs Company Case | D23: 1 | E23: 1 | F23: 50000 | G23: 1 | H23: 1 | I23: 1 | J23: 1 | K23: 0.005 | L23: 1 | M23: 0.17 | N23: 0.12 | O23: 0.095 | P23: 14 | Q23: 1.56968005 | R23: 2.387762118 | S23: 3.157833096 | T23: 3.608962108 | U23: 3.99219744 | V23: FALSE | W23: FALSE | X23: FALSE
B24: 11 | C24: A/P to Expenses Low Case vs Company Case | D24: 1 | E24: 1 | F24: 50000 | G24: 1 | H24: 1 | I24: 1 | J24: 1 | K24: 0.005 | L24: 1 | M24: 0.15 | N24: 0.1 | O24: 0.095 | P24: 15 | Q24: 1.590496465 | R24: 2.429958828 | S24: 3.157833096 | T24: 3.608962108 | U24: 3.99219744 | V24: FALSE | W24: FALSE | X24: FALSE
B25: 12 | C25: Interest Rate Low Case vs Company Case | D25: 1 | E25: 1 | F25: 50000 | G25: 1 | H25: 1 | I25: 1 | J25: 1 | K25: 0.005 | L25: 1 | M25: 0.15 | N25: 0.12 | O25: 0.1 | P25: 16 | Q25: 1.555893085 | R25: 2.378827892 | S25: 3.12139656 | T25: 3.578887424 | U25: 3.974051088 | V25: FALSE | W25: FALSE | X25: FALSE
P26: 17 | Q26: FALSE | R26: FALSE | S26: FALSE | T26: FALSE | U26: FALSE | V26: FALSE | W26: FALSE | X26: FALSE
C27: Custom Scenario | D27: =D34*D31 -> 1 | E27: =E34*E31 -> 2 | F27: =F34*F31 -> 39000 | G27: 1 | H27: 1 | I27: 1 | J27: 1 | K27: 0.005 | L27: 1 | M27: 0.15 | N27: 0.12 | O27: 0.085 | P27: 18 | Q27: 127994.5108 | R27: 128358.4936 | S27: 111567.6009 | T27: 73417.49406 | U27: 33447.72904 | V27: 0 | W27: 0 | X27: 0
F28: =F34*F31 -> 39000 | K28: =K34*K31 -> 0.005 | M28: =M34*M31 -> 0.15 | N28: =N34*N31 -> 0.12 | O28: =O34*O31 -> 0.085 | P28: 19 | Q28: FALSE | R28: FALSE | S28: FALSE | T28: FALSE | U28: FALSE | V28: FALSE | W28: FALSE | X28: FALSE
C29: =INDEX(C10:C28,$G$5) -> Custom Scenario | D29: =INDEX(D10:D28,$G$5) -> 1 | E29: 2 | F29: 39000 | G29: 1 | H29: 1 | I29: 2 | J29: 1 | K29: 0.005 | L29: 1 | M29: 0.15 | N29: 0.12 | O29: 0.085 | P29: 20 | Q29: FALSE | R29: FALSE | S29: FALSE | T29: FALSE | U29: FALSE | V29: FALSE | W29: FALSE | X29: FALSE
C31: Multiplier | D31: 1 | E31: 1 | F31: 1000 | G31: 1 | H31: 1 | I31: 1 | J31: 1 | K31: 0.0001 | L31: 1 | M31: 0.001 | N31: 0.001 | O31: 0.001
C32: Copied Case | D32: =D10 -> 1 | E32: =E10 -> 1 | F32: 50000 | G32: 1 | H32: 1 | I32: 1 | J32: 1 | K32: 0.005 | L32: 1 | M32: 0.15 | N32: 0.12 | O32: 0.095
C33: Adjusted | D33: =D32 -> 1 | E33: =E32 -> 1 | F33: =F32/F31 -> 50 | G33: =G32 -> 1 | H33: =H32 -> 1 | I33: 1 | J33: 1 | K33: =K32/K31 -> 50 | L33: 2 | M33: =M32/M31 -> 150 | N33: =N32/N31 -> 120 | O33: =O32/O31 -> 95
C34: Fixed | D34: 1 | E34: 2 | F34: 39 | G34: 1 | H34: 1 | I34: 1 | J34: 1 | K34: 50 | L34: 1 | M34: 150 | N34: 120 | O34: 85
D40: =E1&" vs "&E2 -> Company Case vs Low Case
C41: =TRANSPOSE(D8:O8) -> Planes Grounded | D41: =AVERAGE(Q14:X14)-AVERAGE(OFFSET($Q$9,$D$1,0,1,8)) -> -0.1809131314
C42: Price Increase | D42: =AVERAGE(Q15:X15)-AVERAGE(OFFSET($Q$9,$D$1,0,1,8)) -> -1.202812794
C43: Other Revenues | D43: -0.1026207597
C44: Flight Expense per Hour | D44: -0.4681511047
C45: Maint per Hour | D45: -0.7136086088
C46: Fuel Expense per Hour | D46: 0
C47: SG&A per Revenue | D47: -0.1021028749
C48: Bad Debt Expense | D48: -0.009073780617
C49: Cap Exp - Maintenance | D49: -0.2867933772
C50: A/R to Revenues | D50: -0.01260262526
C51: A/P to Expenses | D51: 0
C52: Interest Rate | D52: -0.03407837783

Sheet Assumptions
B1: Year | M1: =N1-1 -> 1992 | N1: =O1-1 -> 1993 | O1: =P1-1 -> 1994 | P1: =Q1-1 -> 1995 | Q1: =R1-1 -> 1996 | R1: 1997 | S1: 1997 | T1: =S1+1 -> 1998 | U1: =T1+1 -> 1999 | V1: 2000 | W1: 2001 | X1: 2002 | Y1: 2003 | Z1: 2004 | AA1: 2005
B2: Fraction of Year | M2: 1 | N2: 1 | O2: 1 | P2: 1 | Q2: 1 | R2: ='Financial Model'!N4 -> 0.7142857143 | S2: ='Financial Model'!O4 -> 0.2857142857 | T2: 1 | U2: 1 | V2: 1 | W2: 1 | X2: 1 | Y2: 1 | Z2: 1 | AA2: 1
B3: Switch | M3: FALSE | N3: FALSE | O3: FALSE | P3: FALSE | Q3: FALSE | R3: TRUE | S3: FALSE | T3: FALSE | U3: FALSE | V3: FALSE | W3: FALSE | X3: FALSE | Y3: FALSE | Z3: FALSE | AA3: FALSE
E4: Method | F4: Last Value | G4: Average | H4: Input | I4: Value Applied | J4: Graph | K4: Graph No | L4: Index Code | M4: TRUE | N4: TRUE | O4: TRUE | P4: TRUE | Q4: TRUE | R4: TRUE | S4: FALSE | T4: FALSE | U4: FALSE | V4: FALSE | W4: FALSE | X4: FALSE | Y4: FALSE | Z4: FALSE | AA4: FALSE
B5: Capacity | K5: 0
C6: Base Capacity | K6: =K5+J6 -> 0 | R6: ='Airline Fleet'!$M$34 -> 6138986.667 | S6: ='Airline Fleet'!$M$34 -> 6138986.667 | T6: =S6 -> 6138986.667 | U6: =T6 -> 6138986.667 | V6: 6138986.667 | W6: 6138986.667 | X6: 6138986.667 | Y6: 6138986.667 | Z6: 6138986.667 | AA6: 6138986.667
C7: Capacity per 747 | K7: =K6+J7 -> 0 | R7: =S7 -> 229000 | S7: ='Airline Fleet'!K9 -> 229000 | T7: =S7 -> 229000 | U7: =T7 -> 229000 | V7: 229000 | W7: 229000 | X7: 229000 | Y7: 229000 | Z7: 229000 | AA7: 229000
C8: Planes Grounded | K8: 0
D9: Company Base | K9: 0 | R9: 4 | S9: 4 | T9: 1 | U9: 0 | V9: 0 | W9: 0 | X9: 0 | Y9: 0 | Z9: 0 | AA9: 0
D10: Base Case | K10: 0 | R10: 4 | S10: 4 | T10: 2 | U10: 1 | V10: 1 | W10: 1 | X10: 1 | Y10: 1 | Z10: 1 | AA10: 1
D11: Downside Case | K11: 0 | R11: 4 | S11: 4 | T11: 3 | U11: 2 | V11: 2 | W11: 2 | X11: 2 | Y11: 2 | Z11: 2 | AA11: 2
D12: Worst Case | K12: 0 | R12: 6 | S12: 6 | T12: 6 | U12: 6 | V12: 6 | W12: 6 | X12: 6 | Y12: 6 | Z12: 6 | AA12: 6
D13: =INDEX(D9:D12,$L$13) -> Company Base | K13: 0 | L13: ='Scenario Analysis'!D29 -> 1 | R13: =INDEX(R9:R12,$L$13) -> 4 | S13: 4 | T13: 1 | U13: 0 | V13: 0 | W13: 0 | X13: 0 | Y13: 0 | Z13: 0 | AA13: 0
D14: Capacity Not Operable | K14: 0 | R14: =R13*R7 -> 916000 | S14: 916000 | T14: 229000 | U14: 0 | V14: 0 | W14: 0 | X14: 0 | Y14: 0 | Z14: 0 | AA14: 0
D15: Capacity Before Retirements | K15: 0 | R15: =R6-R14 -> 5222986.667 | S15: 5222986.667 | T15: 5909986.667 | U15: 6138986.667 | V15: 6138986.667 | W15: 6138986.667 | X15: 6138986.667 | Y15: 6138986.667 | Z15: 6138986.667 | AA15: 6138986.667
D16: Retirement Rate | K16: 0 | T16: =Depreciation!F13 -> 0.03331171075 | U16: =Depreciation!G13 -> 0.03664288183 | V16: =Depreciation!H13 -> 0.04030717001 | W16: =Depreciation!I13 -> 0.04433788701 | X16: =Depreciation!J13 -> 0.04877167571 | Y16: =Depreciation!K13 -> 0.05364884328 | Z16: =Depreciation!L13 -> 0.05901372761 | AA16: =Depreciation!M13 -> 0.06491510037
D17: Retirements | K17: 0 | R17: =R8-R16 -> 0 | S17: =S15*S16 -> 0 | T17: =T15*T16+S17 -> 196871.7664 | U17: =U15*U16+T17 -> 421821.9293 | V17: 669267.1086 | W17: 941456.8058 | X17: 1240865.473 | Y17: 1570215.006 | Z17: 1932499.493 | AA17: 2331012.429
D18: Net Capacity | J18: TRUE | K18: 1 | R18: =R15-R17 -> 5222986.667 | S18: =S15-S17 -> 5222986.667 | T18: =T15-T17 -> 5713114.9 | U18: 5717164.737 | V18: 5469719.558 | W18: 5197529.861 | X18: 4898121.194 | Y18: 4568771.66 | Z18: 4206487.173 | AA18: 3807974.238
K19: 1
C20: Flight Hours | J20: TRUE | K20: 2 | M20: ='Financial Model'!I106 -> 39404 | N20: ='Financial Model'!J106 -> 55220 | O20: ='Financial Model'!K106 -> 76346 | P20: ='Financial Model'!L106 -> 84058 | Q20: ='Financial Model'!M106 -> 91690 | R20: ='Financial Model'!N106 -> 70721 | S20: =R20/R$2*S$2 -> 28288.4 | T20: =(R20+S20)*T$18/S$18 -> 108300.5021 | U20: =T20*U18/T18 -> 108377.2727 | V20: =U20*V18/U18 -> 103686.5851 | W20: 98526.82878 | X20: 92851.09679 | Y20: 86607.79162 | Z20: 79740.15592 | AA20: 72185.75665
C21: Planes | K21: 2 | M21: ='Financial Model'!I105 -> 59 | N21: ='Financial Model'!J105 -> 65 | O21: ='Financial Model'!K105 -> 86 | P21: ='Financial Model'!L105 -> 95 | Q21: ='Financial Model'!M105 -> 97 | R21: ='Financial Model'!N105 -> 86 | S21: =R21 -> 86 | T21: =S21 -> 86 | U21: 86 | V21: 86 | W21: 86 | X21: 86 | Y21: 86 | Z21: 86 | AA21: 86
K22: 2
B23: Growth Rate | E23: 0.25 | K23: 2
B24: Life | E24: 15 | K24: 2
B25: Number | E25: 1 | K25: 2
B26: Initial | E26: =find_initial(E23,E25,E24) -> 0.009116875 | K26: 2
K27: 2
K28: 2
K29: 2
B30: Price Increase per Capacity | K30: 2
C31: Freight Revenues | J31: TRUE | K31: 3 | M31: ='Financial Model'!I61 -> 95144 | N31: ='Financial Model'!J61 -> 194525 | O31: ='Financial Model'!K61 -> 298081 | P31: ='Financial Model'!L61 -> 359404 | Q31: ='Financial Model'!M61 -> 388193 | R31: ='Financial Model'!N61 -> 302345 | S31: ='Financial Model'!O61 -> 0 | T31: ='Financial Model'!P61 -> 0 | U31: ='Financial Model'!Q61 -> 0 | V31: ='Financial Model'!R61 -> 0 | W31: ='Financial Model'!S61 -> 0 | X31: ='Financial Model'!T61 -> 0 | Y31: ='Financial Model'!U61 -> 0 | Z31: ='Financial Model'!V61 -> 0 | AA31: ='Financial Model'!W61 -> 0
C32: Revenues per Flight Hour | K32: 3 | M32: =IF(M4,M31/M20) -> 2.4145772 | N32: =IF(N4,N31/N20) -> 3.522727273 | O32: 3.904343384 | P32: 4.275666801 | Q32: 4.233755044 | R32: 4.275179932 | S32: FALSE | T32: FALSE | U32: FALSE | V32: FALSE | W32: FALSE | X32: FALSE | Y32: FALSE | Z32: FALSE | AA32: FALSE
C33: Base Price | K33: 3 | R33: =R31/(R18*R2)*1000 -> 81.04232827 | S33: =R33 -> 81.04232827 | T33: =S33 -> 81.04232827 | U33: 81.04232827 | V33: 81.04232827 | W33: 81.04232827 | X33: 81.04232827 | Y33: 81.04232827 | Z33: 81.04232827 | AA33: 81.04232827
C34: Price Increase | K34: 3
D35: 2.5% Increase | K35: 3 | S35: 0.01 | T35: 0.025 | U35: 0.025 | V35: 0.025 | W35: 0.025 | X35: 0.025 | Y35: 0.025 | Z35: 0.025 | AA35: 0.025
D36: Flat Case | K36: 3 | S36: 0 | T36: 0 | U36: 0 | V36: 0 | W36: 0 | X36: 0 | Y36: 0 | Z36: 0 | AA36: 0
D37: 10% Decline Case | K37: 3 | S37: 0 | T37: -0.01 | U37: -0.04 | V37: -0.05 | W37: 0 | X37: 0 | Y37: 0 | Z37: 0 | AA37: 0
K38: 3
D39: =INDEX(D35:D37,L39) -> Flat Case | K39: 3 | L39: ='Scenario Analysis'!E29 -> 2 | M39: =INDEX(M35:M37,$L$39) -> 0 | N39: 0 | O39: 0 | P39: 0 | Q39: 0 | R39: 0 | S39: 0 | T39: 0 | U39: 0 | V39: 0 | W39: 0 | X39: 0 | Y39: 0 | Z39: 0 | AA39: 0
D40: Index | K40: 3 | R40: 1 | S40: =R40*(1+S39)^S2 -> 1 | T40: =S40*(1+T39)^T2 -> 1 | U40: 1 | V40: 1 | W40: 1 | X40: 1 | Y40: 1 | Z40: 1 | AA40: 1
K41: 3
D42: Price per lb Applied | J42: TRUE | K42: 4 | R42: =R40*R33 -> 81.04232827 | S42: =S40*S33 -> 81.04232827 | T42: 81.04232827 | U42: 81.04232827 | V42: 81.04232827 | W42: 81.04232827 | X42: 81.04232827 | Y42: 81.04232827 | Z42: 81.04232827 | AA42: 81.04232827
D43: Revenues | J43: TRUE | K43: 5 | M43: =IF(M4,M31,M42*M18/1000*M2) -> 95144 | N43: =IF(N4,N31,N42*N18/1000*N2) -> 194525 | O43: 298081 | P43: 359404 | Q43: 388193 | R43: 302345 | S43: 120938 | T43: 463004.1332 | U43: 463332.3414 | V43: 443278.808 | W43: 421219.9212 | X43: 396955.1457 | Y43: 370263.8927 | Z43: 340903.5144 | AA43: 308607.0982
D44: Revenues per Flight Hour | J44: TRUE | K44: 6 | M44: =M43/M20 -> 2.4145772 | N44: =N43/N20 -> 3.522727273 | O44: 3.904343384 | P44: 4.275666801 | Q44: 4.233755044 | R44: 4.275179932 | S44: 4.275179932 | T44: 4.275179932 | U44: 4.275179932 | V44: 4.275179932 | W44: 4.275179932 | X44: 4.275179932 | Y44: 4.275179932 | Z44: 4.275179932 | AA44: 4.275179932
K45: 6
B46: Other Revenues | K46: 6
D47: ='Financial Model'!D62 -> Maintenance and other(1) | K47: 6 | M47: =IF(M4,'Financial Model'!I62,$I$46) -> 2606 | N47: =IF(N4,'Financial Model'!J62,$I$46) -> 5584 | O47: =IF(O4,'Financial Model'!K62,$I$46) -> 7449 | P47: =IF(P4,'Financial Model'!L62,$I$46) -> 14279 | Q47: =IF(Q4,'Financial Model'!M62,$I$46) -> 36348 | R47: =IF(R4,'Financial Model'!N62,$I$46) -> 23299 | S47: =IF(S4,'Financial Model'!O62,$I$46) -> 0 | T47: =IF(T4,'Financial Model'!P62,$I$46) -> 0 | U47: =IF(U4,'Financial Model'!Q62,$I$46) -> 0 | V47: =IF(V4,'Financial Model'!R62,$I$46) -> 0 | W47: =IF(W4,'Financial Model'!S62,$I$46) -> 0 | X47: =IF(X4,'Financial Model'!T62,$I$46) -> 0 | Y47: =IF(Y4,'Financial Model'!U62,$I$46) -> 0 | Z47: =IF(Z4,'Financial Model'!V62,$I$46) -> 0 | AA47: =IF(AA4,'Financial Model'!W62,$I$46) -> 0
D48: Annualized | E48: 3 | F48: =SUMIF(3:3,TRUE,48:48) -> 32618.6 | G48: =AVERAGEIF(4:4,TRUE,48:48) -> 16480.76667 | H48: ='Scenario Analysis'!F29 -> 39000 | I48: =CHOOSE(E48,F48,G48,H48) -> 39000 | K48: 6 | M48: =IF(M4,M47/M2,$I$48) -> 2606 | N48: =IF(N4,N47/N2,$I$48) -> 5584 | O48: 7449 | P48: 14279 | Q48: 36348 | R48: 32618.6 | S48: 39000 | T48: 39000 | U48: 39000 | V48: 39000 | W48: 39000 | X48: 39000 | Y48: 39000 | Z48: 39000 | AA48: 39000
D49: Escalation | I49: 0.02 | K49: 6 | M49: =IF(M4,1,L49*((1+$I$49)^M2)) -> 1 | N49: =IF(N4,1,M49*((1+$I$49)^N2)) -> 1 | O49: 1 | P49: 1 | Q49: 1 | R49: 1 | S49: =IF(S4,1,R49*((1+$I$49)^S2)) -> 1.00567393 | T49: 1.025787408 | U49: 1.046303156 | V49: 1.06722922 | W49: 1.088573804 | X49: 1.11034528 | Y49: 1.132552186 | Z49: 1.155203229 | AA49: 1.178307294
D50: Escalated Revenues | J50: TRUE | K50: 7 | M50: =PRODUCT(M48:M49)*M2 -> 2606 | N50: =PRODUCT(N48:N49)*N2 -> 5584 | O50: 7449 | P50: 14279 | Q50: 36348 | R50: 23299 | S50: 11206.08093 | T50: 40005.70892 | U50: 40805.8231 | V50: 41621.93956 | W50: 42454.37835 | X50: 43303.46592 | Y50: 44169.53524 | Z50: 45052.92594 | AA50: 45953.98446
K51: 7
A52: Operating Expense | K52: 7
B53: Flight Expense | K53: 7 | M53: ='Financial Model'!I65 -> 37259 | N53: ='Financial Model'!J65 -> 62877 | O53: ='Financial Model'!K65 -> 115614 | P53: ='Financial Model'!L65 -> 168775 | Q53: ='Financial Model'!M65 -> 150256 | R53: ='Financial Model'!N65 -> 126208
C54: Per Plane | K54: 7 | M54: =IF(M4,M53/M21) -> 631.5084746 | N54: =N53/'Financial Model'!J105 -> 967.3384615 | O54: =O53/'Financial Model'!K105 -> 1344.348837 | P54: =P53/'Financial Model'!L105 -> 1776.578947 | Q54: =Q53/'Financial Model'!M105 -> 1549.030928 | R54: =R53/'Financial Model'!N105 -> 1467.534884
D55: Flight per Hour - Company Case | K55: 7 | M55: =M53/M20 -> 0.9455639021 | N55: =N53/N20 -> 1.138663528 | O55: 1.514342598 | P55: 2.007839825 | Q55: 1.63873923 | R55: 1.78459015 | S55: =R55 -> 1.78459015 | T55: 1.4 | U55: 1.25 | V55: 1.25 | W55: 1.25 | X55: 1.25 | Y55: 1.25 | Z55: 1.25 | AA55: 1.25
D56: Flight per Hour - Base Case | K56: 7 | M56: =M55 -> 0.9455639021 | N56: =N55 -> 1.138663528 | O56: 1.514342598 | P56: 2.007839825 | Q56: 1.63873923 | R56: 1.78459015 | S56: =S55 -> 1.78459015 | T56: 1.6 | U56: 1.5 | V56: 1.4 | W56: 1.4 | X56: 1.4 | Y56: 1.4 | Z56: 1.4 | AA56: 1.4
D57: Flight per Hour - Low Case | K57: 7 | M57: =M56 -> 0.9455639021 | N57: =N56 -> 1.138663528 | O57: 1.514342598 | P57: 2.007839825 | Q57: 1.63873923 | R57: 1.78459015 | S57: 1.78459015 | T57: 1.6 | U57: 1.5 | V57: 1.5 | W57: 1.5 | X57: 1.5 | Y57: 1.5 | Z57: 1.5 | AA57: 1.5
D58: Flight per Hour - Worst Case | K58: 7 | M58: =M57 -> 0.9455639021 | N58: 1.138663528 | O58: 1.514342598 | P58: 2.007839825 | Q58: 1.63873923 | R58: 1.78459015 | S58: 1.78459015 | T58: =S58 -> 1.78459015 | U58: =T58 -> 1.78459015 | V58: 1.78459015 | W58: 1.78459015 | X58: 1.78459015 | Y58: 1.78459015 | Z58: 1.78459015 | AA58: 1.78459015
K59: 7
D60: =INDEX(D55:D58,$L$60) -> Flight per Hour - Company Case | J60: TRUE | K60: 8 | L60: ='Scenario Analysis'!G29 -> 1 | M60: =INDEX(M55:M58,$L$60) -> 0.9455639021 | N60: =INDEX(N55:N58,$L$60) -> 1.138663528 | O60: 1.514342598 | P60: 2.007839825 | Q60: 1.63873923 | R60: 1.78459015 | S60: 1.78459015 | T60: 1.4 | U60: 1.25 | V60: 1.25 | W60: 1.25 | X60: 1.25 | Y60: 1.25 | Z60: 1.25 | AA60: 1.25
K61: 8
B62: Maintenance Expense | K62: 8 | M62: =IF(M4,'Financial Model'!I66) -> 22114 | N62: =IF(N4,'Financial Model'!J66) -> 51933 | O62: =IF(O4,'Financial Model'!K66) -> 64722 | P62: =IF(P4,'Financial Model'!L66) -> 103389 | Q62: =IF(Q4,'Financial Model'!M66) -> 115082 | R62: =IF(R4,'Financial Model'!N66) -> 107432 | S62: =IF(S4,'Financial Model'!O66) -> FALSE | T62: =IF(T4,'Financial Model'!P66) -> FALSE | U62: =IF(U4,'Financial Model'!Q66) -> FALSE | V62: =IF(V4,'Financial Model'!R66) -> FALSE | W62: =IF(W4,'Financial Model'!S66) -> FALSE | X62: =IF(X4,'Financial Model'!T66) -> FALSE | Y62: =IF(Y4,'Financial Model'!U66) -> FALSE | Z62: =IF(Z4,'Financial Model'!V66) -> FALSE | AA62: =IF(AA4,'Financial Model'!W66) -> FALSE
C63: Per Plane | K63: 8 | M63: =M62/M21 -> 374.8135593 | N63: =N62/N21 -> 798.9692308 | O63: 752.5813953 | P63: 1088.305263 | Q63: 1186.412371 | R63: 1249.209302
C64: Per Hour | K64: 8 | M64: =M62/M20 -> 0.5612120597 | N64: =N62/N20 -> 0.9404744658 | O64: 0.8477457889 | P64: 1.229972162 | Q64: 1.255120515 | R64: 1.519096167
D65: Maint per Hour - Company | K65: 8 | M65: =M64 -> 0.5612120597 | N65: =N64 -> 0.9404744658 | O65: 0.8477457889 | P65: 1.229972162 | Q65: 1.255120515 | R65: 1.519096167 | S65: =R65 -> 1.519096167 | T65: 1.2 | U65: 1.1 | V65: 1 | W65: 1 | X65: 1 | Y65: 1 | Z65: 1 | AA65: 1
D66: Maint per Hour - Base Case | K66: 8 | M66: =M65 -> 0.5612120597 | N66: 0.9404744658 | O66: 0.8477457889 | P66: 1.229972162 | Q66: 1.255120515 | R66: 1.519096167 | S66: =R66 -> 1.519096167 | T66: 1.25 | U66: 1.15 | V66: 1.15 | W66: 1.15 | X66: 1.15 | Y66: 1.15 | Z66: 1.15 | AA66: 1.15
D67: Maint per Hour - Low Case | K67: 8 | M67: =M66 -> 0.5612120597 | N67: 0.9404744658 | O67: 0.8477457889 | P67: 1.229972162 | Q67: 1.255120515 | R67: 1.519096167 | S67: 1.519096167 | T67: 1.5 | U67: 1.4 | V67: =U67 -> 1.4 | W67: 1.4 | X67: 1.4 | Y67: 1.4 | Z67: 1.4 | AA67: 1.4
D68: Maint per Hour - Worst Case | K68: 8 | M68: =M67 -> 0.5612120597 | N68: 0.9404744658 | O68: 0.8477457889 | P68: 1.229972162 | Q68: 1.255120515 | R68: 1.519096167 | S68: =R68 -> 1.519096167 | T68: =S68 -> 1.519096167 | U68: 1.519096167 | V68: 1.519096167 | W68: 1.519096167 | X68: 1.519096167 | Y68: 1.519096167 | Z68: 1.519096167 | AA68: 1.519096167
K69: 8
D70: =INDEX(D65:D68,$L$70) -> Maint per Hour - Company | J70: TRUE | K70: 9 | L70: ='Scenario Analysis'!H29 -> 1 | M70: =INDEX(M65:M68,$L$70) -> 0.5612120597 | N70: =INDEX(N65:N68,$L$70) -> 0.9404744658 | O70: 0.8477457889 | P70: 1.229972162 | Q70: 1.255120515 | R70: 1.519096167 | S70: 1.519096167 | T70: 1.2 | U70: 1.1 | V70: 1 | W70: 1 | X70: 1 | Y70: 1 | Z70: 1 | AA70: 1
K71: =K70+J71 -> 9
B72: Fuel Expense | K72: 9 | M72: ='Financial Model'!I67 -> 16508 | N72: ='Financial Model'!J67 -> 38554 | O72: ='Financial Model'!K67 -> 57362 | P72: ='Financial Model'!L67 -> 54538 | Q72: ='Financial Model'!M67 -> 82717 | R72: ='Financial Model'!N67 -> 55095 | S72: ='Financial Model'!O67 -> 0 | T72: ='Financial Model'!P67 -> 0 | U72: ='Financial Model'!Q67 -> 0 | V72: ='Financial Model'!R67 -> 0 | W72: ='Financial Model'!S67 -> 0 | X72: ='Financial Model'!T67 -> 0 | Y72: ='Financial Model'!U67 -> 0 | Z72: ='Financial Model'!V67 -> 0 | AA72: ='Financial Model'!W67 -> 0
C73: Per Plane | K73: 9 | M73: =IF(M4,M72/M21) -> 279.7966102 | N73: =IF(N4,N72/N21) -> 593.1384615 | O73: 667 | P73: 574.0842105 | Q73: 852.7525773 | R73: 640.6395349 | S73: FALSE | T73: FALSE | U73: FALSE | V73: FALSE | W73: FALSE | X73: FALSE | Y73: FALSE | Z73: FALSE | AA73: FALSE
C74: Per Hour | K74: 9 | M74: =IF(M4,M72/M20) -> 0.4189422394 | N74: =IF(N4,N72/N20) -> 0.6981890619 | O74: 0.751342572 | P74: 0.6488139142 | Q74: 0.9021376377 | R74: 0.779047242 | S74: FALSE | T74: FALSE | U74: FALSE | V74: FALSE | W74: FALSE | X74: FALSE | Y74: FALSE | Z74: FALSE | AA74: FALSE
D75: Fuel per Hour - Company | K75: 9 | M75: =M74 -> 0.4189422394 | N75: =N74 -> 0.6981890619 | O75: 0.751342572 | P75: 0.6488139142 | Q75: 0.9021376377 | R75: 0.779047242 | S75: =R75 -> 0.779047242 | T75: =S75 -> 0.779047242 | U75: =T75 -> 0.779047242 | V75: 0.779047242 | W75: 0.779047242 | X75: 0.779047242 | Y75: 0.779047242 | Z75: 0.779047242 | AA75: 0.779047242
D76: Fuel per Hour - Base Case | K76: 9 | M76: =M75 -> 0.4189422394 | N76: 0.6981890619 | O76: 0.751342572 | P76: 0.6488139142 | Q76: 0.9021376377 | R76: 0.779047242 | S76: 0.779047242 | T76: =S76*1.02 -> 0.7946281868 | U76: =T76*1.02 -> 0.8105207506 | V76: 0.8267311656 | W76: 0.8432657889 | X76: 0.8601311047 | Y76: 0.8773337267 | Z76: 0.8948804013 | AA76: 0.9127780093
D77: Fuel per Hour - Low Case | K77: 9 | M77: 0.4189422394 | N77: 0.6981890619 | O77: 0.751342572 | P77: 0.6488139142 | Q77: 0.9021376377 | R77: 0.779047242 | S77: 0.779047242 | T77: =S77*1.03 -> 0.8024186592 | U77: =T77*1.03 -> 0.826491219 | V77: 0.8512859556 | W77: 0.8768245343 | X77: 0.9031292703 | Y77: =X77 -> 0.9031292703 | Z77: =Y77 -> 0.9031292703 | AA77: 0.9031292703
D78: Fuel per Hour - Worst Case | K78: 9 | M78: 0.4189422394 | N78: 0.6981890619 | O78: 0.751342572 | P78: 0.6488139142 | Q78: 0.9021376377 | R78: 0.779047242 | S78: 0.779047242 | T78: 0.8024186592 | U78: 0.826491219 | V78: 0.8512859556 | W78: 0.8768245343 | X78: 0.9031292703 | Y78: 0.9031292703 | Z78: 0.9031292703 | AA78: 0.9031292703
K79: 9
D80: =INDEX(D75:D78,$L$80) -> Fuel per Hour - Base Case | J80: TRUE | K80: 10 | L80: ='Scenario Analysis'!I29 -> 2 | M80: =INDEX(M75:M78,$L$80) -> 0.4189422394 | N80: =INDEX(N75:N78,$L$80) -> 0.6981890619 | O80: 0.751342572 | P80: 0.6488139142 | Q80: 0.9021376377 | R80: 0.779047242 | S80: 0.779047242 | T80: 0.7946281868 | U80: 0.8105207506 | V80: 0.8267311656 | W80: 0.8432657889 | X80: 0.8601311047 | Y80: 0.8773337267 | Z80: 0.8948804013 | AA80: 0.9127780093
K81: 10
B82: Selling and Admininstrative | K82: 10 | M82: =IF(M4,'Financial Model'!I69) -> 4232 | N82: =IF(N4,'Financial Model'!J69) -> 9554 | O82: =IF(O4,'Financial Model'!K69) -> 13273 | P82: =IF(P4,'Financial Model'!L69) -> 21676 | Q82: =IF(Q4,'Financial Model'!M69) -> 21889 | R82: =IF(R4,'Financial Model'!N69) -> 17848 | S82: =IF(S4,'Financial Model'!O69) -> FALSE | T82: =IF(T4,'Financial Model'!P69) -> FALSE | U82: =IF(U4,'Financial Model'!Q69) -> FALSE | V82: =IF(V4,'Financial Model'!R69) -> FALSE | W82: =IF(W4,'Financial Model'!S69) -> FALSE | X82: =IF(X4,'Financial Model'!T69) -> FALSE | Y82: =IF(Y4,'Financial Model'!U69) -> FALSE | Z82: =IF(Z4,'Financial Model'!V69) -> FALSE | AA82: =IF(AA4,'Financial Model'!W69) -> FALSE
C83: Per Revenue | K83: 10 | M83: =IF(M31,M82/M31) -> 0.04447994619 | N83: =IF(N31,N82/N31) -> 0.0491145097 | O83: 0.04452816516 | P83: 0.06031095925 | Q83: 0.05638690033 | R83: 0.05903190064 | S83: FALSE | T83: FALSE | U83: FALSE | V83: FALSE | W83: FALSE | X83: FALSE | Y83: FALSE | Z83: FALSE | AA83: FALSE
C84: Increase | K84: 10 | N84: =IF(N4,N82/M82-1) -> 1.257561437 | O84: =IF(O4,O82/N82-1) -> 0.3892610425 | P84: 0.633089731 | Q84: 0.009826536261 | R84: -0.1846132761 | S84: FALSE | T84: FALSE | U84: FALSE | V84: FALSE | W84: FALSE | X84: FALSE | Y84: FALSE | Z84: FALSE | AA84: FALSE
D85: SG&A per Revenue - Company | K85: 10 | M85: =M83 -> 0.04447994619 | N85: =N83 -> 0.0491145097 | O85: 0.04452816516 | P85: 0.06031095925 | Q85: 0.05638690033 | R85: 0.05903190064 | S85: =R85 -> 0.05903190064 | T85: 0.054 | U85: 0.05 | V85: 0.045 | W85: 0.045 | X85: 0.045 | Y85: 0.045 | Z85: 0.045 | AA85: 0.045
D86: SG&A per Revenue - Base Case | K86: 10 | M86: =M85 -> 0.04447994619 | N86: =N85 -> 0.0491145097 | O86: 0.04452816516 | P86: 0.06031095925 | Q86: 0.05638690033 | R86: 0.05903190064 | S86: 0.05903190064 | T86: 0.054 | U86: 0.052 | V86: =U86 -> 0.052 | W86: =V86 -> 0.052 | X86: 0.052 | Y86: 0.052 | Z86: 0.052 | AA86: 0.052
D87: SG&A per Revenue - Low Case | K87: 10 | M87: =M85 -> 0.04447994619 | N87: 0.0491145097 | O87: 0.04452816516 | P87: 0.06031095925 | Q87: 0.05638690033 | R87: 0.05903190064 | S87: =R87 -> 0.05903190064 | T87: =S87 -> 0.05903190064 | U87: =T87 -> 0.05903190064 | V87: 0.05903190064 | W87: 0.05903190064 | X87: 0.05903190064 | Y87: 0.05903190064 | Z87: 0.05903190064 | AA87: 0.05903190064
D88: SG&A per Revenue - Worst Case | K88: 10 | M88: =M86 -> 0.04447994619 | N88: 0.0491145097 | O88: 0.04452816516 | P88: 0.06031095925 | Q88: 0.05638690033 | R88: 0.05903190064 | S88: 0.05903190064 | T88: =S88 -> 0.05903190064 | U88: =T88 -> 0.05903190064 | V88: 0.05903190064 | W88: 0.05903190064 | X88: 0.05903190064 | Y88: 0.05903190064 | Z88: 0.05903190064 | AA88: 0.05903190064
K89: 10
D90: =INDEX(D85:D88,$L$90) -> SG&A per Revenue - Company | J90: TRUE | K90: 11 | L90: ='Scenario Analysis'!J29 -> 1 | M90: =INDEX(M85:M88,$L$90) -> 0.04447994619 | N90: =INDEX(N85:N88,$L$90) -> 0.0491145097 | O90: 0.04452816516 | P90: 0.06031095925 | Q90: 0.05638690033 | R90: 0.05903190064 | S90: 0.05903190064 | T90: 0.054 | U90: 0.05 | V90: 0.045 | W90: 0.045 | X90: 0.045 | Y90: 0.045 | Z90: 0.045 | AA90: 0.045
K91: 11
B92: Bad Debt Expenses | K92: 11 | M92: =IF(M4,'Financial Model'!I70) -> 1557 | N92: =IF(N4,'Financial Model'!J70) -> 1547 | O92: =IF(O4,'Financial Model'!K70) -> 2231 | P92: =IF(P4,'Financial Model'!L70) -> 1862 | Q92: =IF(Q4,'Financial Model'!M70) -> 1011 | R92: =IF(R4,'Financial Model'!N70) -> 1633 | S92: =IF(S4,'Financial Model'!O70) -> FALSE | T92: =IF(T4,'Financial Model'!P70) -> FALSE | U92: =IF(U4,'Financial Model'!Q70) -> FALSE | V92: =IF(V4,'Financial Model'!R70) -> FALSE | W92: =IF(W4,'Financial Model'!S70) -> FALSE | X92: =IF(X4,'Financial Model'!T70) -> FALSE | Y92: =IF(Y4,'Financial Model'!U70) -> FALSE | Z92: =IF(Z4,'Financial Model'!V70) -> FALSE | AA92: =IF(AA4,'Financial Model'!W70) -> FALSE
C93: Per Revenue | E93: 3 | F93: =SUMIF(3:3,TRUE,93:93) -> 0.005401114621 | G93: =AVERAGEIF(4:4,TRUE,93:93) -> 0.007498034161 | H93: ='Scenario Analysis'!K29 -> 0.005 | I93: =CHOOSE(E93,F93,G93,H93) -> 0.005 | J93: TRUE | K93: 12 | M93: =IF(M4,M92/M43,$I$93) -> 0.01636466829 | N93: =IF(N4,N92/N43,$I$93) -> 0.007952705308 | O93: 0.007484542792 | P93: 0.005180799323 | Q93: 0.002604374628 | R93: 0.005401114621 | S93: 0.005 | T93: 0.005 | U93: 0.005 | V93: 0.005 | W93: 0.005 | X93: 0.005 | Y93: 0.005 | Z93: 0.005 | AA93: 0.005
K94: 12
A95: Captial Expenditures | K95: 12
B96: Historic | K96: 12 | M96: =IF(M4,'Financial Model'!I87) -> 55863 | N96: =IF(N4,'Financial Model'!J87) -> 20468 | O96: =IF(O4,'Financial Model'!K87) -> 77832 | P96: =IF(P4,'Financial Model'!L87) -> 153719 | Q96: =IF(Q4,'Financial Model'!M87) -> 53413 | R96: =IF(R4,'Financial Model'!N87) -> 54509 | S96: =IF(S4,'Financial Model'!O87) -> FALSE | T96: =IF(T4,'Financial Model'!P87) -> FALSE | U96: =IF(U4,'Financial Model'!Q87) -> FALSE | V96: =IF(V4,'Financial Model'!R87) -> FALSE | W96: =IF(W4,'Financial Model'!S87) -> FALSE | X96: =IF(X4,'Financial Model'!T87) -> FALSE | Y96: =IF(Y4,'Financial Model'!U87) -> FALSE | Z96: =IF(Z4,'Financial Model'!V87) -> FALSE | AA96: =IF(AA4,'Financial Model'!W87) -> FALSE
B97: Aircraft Owned | K97: 12 | M97: =IF(M4,'Financial Model'!I104) -> 52 | N97: =IF(N4,'Financial Model'!J104) -> 57 | O97: =IF(O4,'Financial Model'!K104) -> 82 | P97: =IF(P4,'Financial Model'!L104) -> 91 | Q97: =IF(Q4,'Financial Model'!M104) -> 95 | R97: =IF(R4,'Financial Model'!N104) -> 84 | S97: =IF(S4,'Financial Model'!O104) -> FALSE | T97: =IF(T4,'Financial Model'!P104) -> FALSE | U97: =IF(U4,'Financial Model'!Q104) -> FALSE | V97: =IF(V4,'Financial Model'!R104) -> FALSE | W97: =IF(W4,'Financial Model'!S104) -> FALSE | X97: =IF(X4,'Financial Model'!T104) -> FALSE | Y97: =IF(Y4,'Financial Model'!U104) -> FALSE | Z97: =IF(Z4,'Financial Model'!V104) -> FALSE | AA97: =IF(AA4,'Financial Model'!W104) -> FALSE
B98: Change in Aircraft | K98: 12 | N98: =N97-M97 -> 5 | O98: =O97-N97 -> 25 | P98: 9 | Q98: 4 | R98: -11 | S98: -84 | T98: 0 | U98: 0 | V98: 0 | W98: 0 | X98: 0 | Y98: 0 | Z98: 0 | AA98: 0
C99: Company Case Maintenance Expenditures | K99: 12 | S99: =R96/R2*S2 -> 21803.6 | T99: 25000 | U99: 25000 | V99: 25000 | W99: 20000 | X99: 20000 | Y99: 20000 | Z99: 20000 | AA99: 20000
C100: Base Case Maintenance Expenditures | K100: 12 | S100: =S99 -> 21803.6 | T100: 35000 | U100: 35000 | V100: 30000 | W100: 30000 | X100: 30000 | Y100: 30000 | Z100: =Z99 -> 20000 | AA100: =AA99 -> 20000
C101: Downside Case Maintenance Expenditures | K101: 12 | S101: =S100 -> 21803.6 | T101: 40000 | U101: 40000 | V101: 40000 | W101: =W100 -> 30000 | X101: 40000 | Y101: =Y100 -> 30000 | Z101: =Z100 -> 20000 | AA101: =AA100 -> 20000
C102: Worst Case Maintenance Expenditures | K102: 12 | S102: =S101 -> 21803.6 | T102: =T101 -> 40000 | U102: =U101 -> 40000 | V102: 40000 | W102: 30000 | X102: 40000 | Y102: 30000 | Z102: 20000 | AA102: 20000
K103: 12
C104: =INDEX(C99:C102,$L$104) -> Company Case Maintenance Expenditures | J104: TRUE | K104: 13 | L104: ='Scenario Analysis'!L29 -> 1 | M104: =INDEX(M99:M102,$L$104) -> 0 | N104: =INDEX(N99:N102,$L$104) -> 0 | O104: 0 | P104: 0 | Q104: 0 | R104: 0 | S104: 21803.6 | T104: 25000 | U104: 25000 | V104: 25000 | W104: 20000 | X104: 20000 | Y104: 20000 | Z104: 20000 | AA104: 20000
K105: 13
C106: Capital Expenditures for New 747 | R106: 56000
A108: Depreciation Expense | K108: =K105+J108 -> 13
B109: Historic Depreciation | K109: 13 | M109: =IF(M4,'Financial Model'!I68/M2) -> 8999 | N109: =IF(N4,'Financial Model'!J68/N2) -> 12422 | O109: =IF(O4,'Financial Model'!K68/O2) -> 13809 | P109: =IF(P4,'Financial Model'!L68/P2) -> 20972 | Q109: =IF(Q4,'Financial Model'!M68/Q2) -> 32091 | R109: =IF(R4,'Financial Model'!N68/R2) -> 37055.2 | S109: =IF(S4,'Financial Model'!O68/S2) -> FALSE | T109: =IF(T4,'Financial Model'!P68/T2) -> FALSE | U109: =IF(U4,'Financial Model'!Q68/U2) -> FALSE | V109: =IF(V4,'Financial Model'!R68/V2) -> FALSE | W109: =IF(W4,'Financial Model'!S68/W2) -> FALSE | X109: =IF(X4,'Financial Model'!T68/X2) -> FALSE | Y109: =IF(Y4,'Financial Model'!U68/Y2) -> FALSE | Z109: =IF(Z4,'Financial Model'!V68/Z2) -> FALSE | AA109: =IF(AA4,'Financial Model'!W68/AA2) -> FALSE
B110: Historic Net Plant | K110: 13 | M110: =IF(M4,'Financial Model'!I27) -> 117295 | N110: =IF(N4,'Financial Model'!J27) -> 127098 | O110: =IF(O4,'Financial Model'!K27) -> 226541 | P110: =IF(P4,'Financial Model'!L27) -> 226841.734 | Q110: =IF(Q4,'Financial Model'!M27) -> 264006.688 | R110: =IF(R4,'Financial Model'!N27) -> 248466.245 | S110: =IF(S4,'Financial Model'!O27) -> FALSE | T110: =IF(T4,'Financial Model'!P27) -> FALSE | U110: =IF(U4,'Financial Model'!Q27) -> FALSE | V110: =IF(V4,'Financial Model'!R27) -> FALSE | W110: =IF(W4,'Financial Model'!S27) -> FALSE | X110: =IF(X4,'Financial Model'!T27) -> FALSE | Y110: =IF(Y4,'Financial Model'!U27) -> FALSE | Z110: =IF(Z4,'Financial Model'!V27) -> FALSE | AA110: =IF(AA4,'Financial Model'!W27) -> FALSE
B111: Historic Gross Plant | K111: 13 | M111: =IF(M4,'Financial Model'!I25) -> 117295 | N111: =IF(N4,'Financial Model'!J25) -> 127098 | O111: =IF(O4,'Financial Model'!K25) -> 226541 | P111: =IF(P4,'Financial Model'!L25) -> 308088.615 | Q111: =IF(Q4,'Financial Model'!M25) -> 373714.2 | R111: =IF(R4,'Financial Model'!N25) -> 362349.805 | S111: =IF(S4,'Financial Model'!O25) -> FALSE | T111: =IF(T4,'Financial Model'!P25) -> FALSE | U111: =IF(U4,'Financial Model'!Q25) -> FALSE | V111: =IF(V4,'Financial Model'!R25) -> FALSE | W111: =IF(W4,'Financial Model'!S25) -> FALSE | X111: =IF(X4,'Financial Model'!T25) -> FALSE | Y111: =IF(Y4,'Financial Model'!U25) -> FALSE | Z111: =IF(Z4,'Financial Model'!V25) -> FALSE | AA111: =IF(AA4,'Financial Model'!W25) -> FALSE
K112: 13
B113: Net Plant Depreciation Rate | K113: 13 | M113: =IF(M110,M109/M110) -> 0.07672108786 | N113: =IF(N110,N109/N110) -> 0.0977356056 | O113: 0.06095585347 | P113: 0.09245212347 | Q113: 0.1215537388 | R113: 0.1491357508 | S113: FALSE | T113: FALSE | U113: FALSE | V113: FALSE | W113: FALSE | X113: FALSE | Y113: FALSE | Z113: FALSE | AA113: FALSE
B114: Gross Plant Depreciation Rate | E114: 1 | F114: =AVERAGEIF(3:3,TRUE,114:114) -> 0.1022636124 | G114: =AVERAGEIF(4:4,TRUE,114:114) -> 0.08193631934 | H114: =1/13 -> 0.07692307692 | I114: =CHOOSE(E114,F114,G114,H114) -> 0.1022636124 | J114: TRUE | K114: 14 | M114: =IF(AND(M111,M4),M109/M111,$I$114) -> 0.07672108786 | N114: 0.0977356056 | O114: 0.06095585347 | P114: 0.06807132422 | Q114: 0.08587043254 | R114: 0.1022636124 | S114: 0.1022636124 | T114: 0.1022636124 | U114: 0.1022636124 | V114: 0.1022636124 | W114: 0.1022636124 | X114: 0.1022636124 | Y114: 0.1022636124 | Z114: 0.1022636124 | AA114: 0.1022636124
B115: Implied Life of Assets | E115: 1 | K115: 14 | M115: =IF(M114,1/M114) -> 13.03422603 | N115: =IF(N114,1/N114) -> 10.23168572 | O115: 16.40531537 | P115: 14.69047373 | Q115: 11.645452 | R115: 9.778649285 | S115: 9.778649285 | T115: 9.778649285 | U115: 9.778649285 | V115: 9.778649285 | W115: 9.778649285 | X115: 9.778649285 | Y115: 9.778649285 | Z115: 9.778649285 | AA115: 9.778649285
K116: 14
B117: Retirement Rate | K117: 14 | M117: =LOOKUP(M1,Depreciation!2:2,Depreciation!13:13) ->  | N117: =LOOKUP(N1,Depreciation!2:2,Depreciation!13:13) ->  | O117: =LOOKUP(O1,Depreciation!2:2,Depreciation!13:13) ->  | P117: =LOOKUP(P1,Depreciation!2:2,Depreciation!13:13) ->  | Q117: =LOOKUP(Q1,Depreciation!2:2,Depreciation!13:13) ->  | R117: =LOOKUP(R1,Depreciation!2:2,Depreciation!13:13) -> 0 | S117: =LOOKUP(S1,Depreciation!2:2,Depreciation!13:13) -> 0 | T117: =LOOKUP(T1,Depreciation!2:2,Depreciation!13:13) -> 0.03331171075 | U117: =LOOKUP(U1,Depreciation!2:2,Depreciation!13:13) -> 0.03664288183 | V117: =LOOKUP(V1,Depreciation!2:2,Depreciation!13:13) -> 0.04030717001 | W117: =LOOKUP(W1,Depreciation!2:2,Depreciation!13:13) -> 0.04433788701 | X117: =LOOKUP(X1,Depreciation!2:2,Depreciation!13:13) -> 0.04877167571 | Y117: =LOOKUP(Y1,Depreciation!2:2,Depreciation!13:13) -> 0.05364884328 | Z117: =LOOKUP(Z1,Depreciation!2:2,Depreciation!13:13) -> 0.05901372761 | AA117: =LOOKUP(AA1,Depreciation!2:2,Depreciation!13:13) -> 0.06491510037
K118: 14
B119: Depreciation Life on Maintenance Expenditures | K119: 14 | L119: 13 | M119: =IF(M4,L119,L119-1) -> 13 | N119: 13 | O119: 13 | P119: 13 | Q119: 13 | R119: 13 | S119: 12 | T119: 11 | U119: 10 | V119: 9 | W119: 8 | X119: 7 | Y119: 6 | Z119: 5 | AA119: 4
B120: Depreciation Rate on Maintenance Expenditures | K120: 14 | M120: =1/M119 -> 0.07692307692 | N120: =1/N119 -> 0.07692307692 | O120: 0.07692307692 | P120: 0.07692307692 | Q120: 0.07692307692 | R120: 0.07692307692 | S120: 0.08333333333 | T120: 0.09090909091 | U120: 0.1 | V120: 0.1111111111 | W120: 0.125 | X120: 0.1428571429 | Y120: 0.1666666667 | Z120: 0.2 | AA120: 0.25
K121: 14
A122: Working Capital | K122: 14
B123: Accounts Receivable | K123: 14 | M123: ='Financial Model'!I11+'Financial Model'!I12 -> 5478 | N123: ='Financial Model'!J11+'Financial Model'!J12 -> 35827 | O123: ='Financial Model'!K11+'Financial Model'!K12 -> 44920 | P123: ='Financial Model'!L11+'Financial Model'!L12 -> 92664.084 | Q123: ='Financial Model'!M11+'Financial Model'!M12 -> 70041.903 | R123: ='Financial Model'!N11+'Financial Model'!N12 -> 66163.482 | S123: ='Financial Model'!O11+'Financial Model'!O12 -> 0 | T123: ='Financial Model'!P11+'Financial Model'!P12 -> 0 | U123: ='Financial Model'!Q11+'Financial Model'!Q12 -> 0 | V123: ='Financial Model'!R11+'Financial Model'!R12 -> 0 | W123: ='Financial Model'!S11+'Financial Model'!S12 -> 0 | X123: ='Financial Model'!T11+'Financial Model'!T12 -> 0 | Y123: ='Financial Model'!U11+'Financial Model'!U12 -> 0 | Z123: ='Financial Model'!V11+'Financial Model'!V12 -> 0 | AA123: ='Financial Model'!W11+'Financial Model'!W12 -> 0
B124: Total Revenues | K124: 14 | M124: ='Financial Model'!I63/M2 -> 97750 | N124: ='Financial Model'!J63/N2 -> 200109 | O124: ='Financial Model'!K63/O2 -> 305530 | P124: ='Financial Model'!L63/P2 -> 373683 | Q124: ='Financial Model'!M63/Q2 -> 424541 | R124: ='Financial Model'!N63/R2 -> 455901.6 | S124: ='Financial Model'!O63/S2 -> 0 | T124: ='Financial Model'!P63/T2 -> 0 | U124: ='Financial Model'!Q63/U2 -> 0 | V124: ='Financial Model'!R63/V2 -> 0 | W124: ='Financial Model'!S63/W2 -> 0 | X124: ='Financial Model'!T63/X2 -> 0 | Y124: ='Financial Model'!U63/Y2 -> 0 | Z124: ='Financial Model'!V63/Z2 -> 0 | AA124: ='Financial Model'!W63/AA2 -> 0
B125: A/R Percent | E125: 3 | F125: =SUMIF($3:$3,TRUE,125:125) -> 0.1451266721 | G125: =AVERAGEIF($4:$4,TRUE,125:125) -> 0.1566976657 | H125: ='Scenario Analysis'!M29 -> 0.15 | I125: =CHOOSE(E125,F125,G125,H125) -> 0.15 | J125: TRUE | K125: 15 | M125: =IF(M$4,M123/M124,$I$125) -> 0.05604092072 | N125: 0.1790374246 | O125: 0.1470232056 | P125: 0.2479751126 | Q125: 0.1649826589 | R125: 0.1451266721 | S125: 0.15 | T125: 0.15 | U125: 0.15 | V125: 0.15 | W125: 0.15 | X125: 0.15 | Y125: 0.15 | Z125: 0.15 | AA125: 0.15
K126: 15
B127: Inventories | K127: 15 | M127: ='Financial Model'!I13 -> 0 | N127: ='Financial Model'!J13 -> 0 | O127: ='Financial Model'!K13 -> 0 | P127: ='Financial Model'!L13 -> 12330.854 | Q127: ='Financial Model'!M13 -> 20742.14 | R127: ='Financial Model'!N13 -> 24624.354 | S127: ='Financial Model'!O13 -> 0 | T127: ='Financial Model'!P13 -> 0 | U127: ='Financial Model'!Q13 -> 0 | V127: ='Financial Model'!R13 -> 0 | W127: ='Financial Model'!S13 -> 0 | X127: ='Financial Model'!T13 -> 0 | Y127: ='Financial Model'!U13 -> 0 | Z127: ='Financial Model'!V13 -> 0 | AA127: ='Financial Model'!W13 -> 0
B128: Total Operating Costs | K128: 15 | M128: ='Financial Model'!I132/M2 -> 81670 | N128: ='Financial Model'!J132/N2 -> 164465 | O128: ='Financial Model'!K132/O2 -> 253202 | P128: ='Financial Model'!L132/P2 -> 350240 | Q128: ='Financial Model'!M132/Q2 -> 370955 | R128: ='Financial Model'!N132/R2 -> 431502.4 | S128: ='Financial Model'!O132/S2 -> 431332.615 | T128: ='Financial Model'!P132/T2 -> 394957.1809 | U128: ='Financial Model'!Q132/U2 -> 368011.8981 | V128: ='Financial Model'!R132/V2 -> 341179.6883 | W128: ='Financial Model'!S132/W2 -> 325830.6648 | X128: ='Financial Model'!T132/X2 -> 308626.8415 | Y128: ='Financial Model'!U132/Y2 -> 289364.6624 | Z128: ='Financial Model'!V132/Z2 -> 267818.4293 | AA128: ='Financial Model'!W132/AA2 -> 243737.8786
B129: Inventory Percent of Total Expense | E129: 1 | F129: =SUMIF($3:$3,TRUE,129:129) -> 0.05706655166 | G129: =AVERAGEIF($4:$4,TRUE,129:129) -> 0.0246981561 | H129: 0.05 | I129: =CHOOSE(E129,F129,G129,H129) -> 0.05706655166 | J129: TRUE | K129: 16 | M129: =IF(M$4,M127/M128,$I129) -> 0 | N129: =IF(N$4,N127/N128,$I129) -> 0 | O129: 0 | P129: 0.03520686958 | Q129: 0.05591551536 | R129: 0.05706655166 | S129: 0.05706655166 | T129: 0.05706655166 | U129: 0.05706655166 | V129: 0.05706655166 | W129: 0.05706655166 | X129: 0.05706655166 | Y129: 0.05706655166 | Z129: 0.05706655166 | AA129: 0.05706655166
K130: 16
B131: Pre-paid and Other | K131: 16 | M131: ='Financial Model'!I15+'Financial Model'!I16 -> 0 | N131: ='Financial Model'!J15+'Financial Model'!J16 -> 0 | O131: ='Financial Model'!K15+'Financial Model'!K16 -> 0 | P131: ='Financial Model'!L15+'Financial Model'!L16 -> 8994.429 | Q131: ='Financial Model'!M15+'Financial Model'!M16 -> 13846.32 | R131: ='Financial Model'!N15+'Financial Model'!N16 -> 14325.573 | S131: ='Financial Model'!O15+'Financial Model'!O16 -> 0 | T131: ='Financial Model'!P15+'Financial Model'!P16 -> 0 | U131: ='Financial Model'!Q15+'Financial Model'!Q16 -> 0 | V131: ='Financial Model'!R15+'Financial Model'!R16 -> 0 | W131: ='Financial Model'!S15+'Financial Model'!S16 -> 0 | X131: ='Financial Model'!T15+'Financial Model'!T16 -> 0 | Y131: ='Financial Model'!U15+'Financial Model'!U16 -> 0 | Z131: ='Financial Model'!V15+'Financial Model'!V16 -> 0 | AA131: ='Financial Model'!W15+'Financial Model'!W16 -> 0
B132: Total Revenues | K132: 16 | M132: =M124 -> 97750 | N132: =N124 -> 200109 | O132: 305530 | P132: 373683 | Q132: 424541 | R132: 455901.6 | S132: 0 | T132: 0 | U132: 0 | V132: 0 | W132: 0 | X132: 0 | Y132: 0 | Z132: 0 | AA132: 0
B133: Pre-Paid Pct of Revenue | E133: 1 | F133: =SUMIF($3:$3,TRUE,133:133) -> 0.03142251091 | G133: =AVERAGEIF($4:$4,TRUE,133:133) -> 0.01468449801 | H133: 0.03 | I133: =CHOOSE(E133,F133,G133,H133) -> 0.03142251091 | J133: TRUE | K133: 17 | M133: =IF(M$4,M131/M132,$I133) -> 0 | N133: =IF(N$4,N131/N132,$I133) -> 0 | O133: =IF(O$4,O131/O132,$I133) -> 0 | P133: =IF(P$4,P131/P132,$I133) -> 0.0240696767 | Q133: =IF(Q$4,Q131/Q132,$I133) -> 0.03261480046 | R133: =IF(R$4,R131/R132,$I133) -> 0.03142251091 | S133: =IF(S$4,S131/S132,$I133) -> 0.03142251091 | T133: =IF(T$4,T131/T132,$I133) -> 0.03142251091 | U133: =IF(U$4,U131/U132,$I133) -> 0.03142251091 | V133: =IF(V$4,V131/V132,$I133) -> 0.03142251091 | W133: =IF(W$4,W131/W132,$I133) -> 0.03142251091 | X133: =IF(X$4,X131/X132,$I133) -> 0.03142251091 | Y133: =IF(Y$4,Y131/Y132,$I133) -> 0.03142251091 | Z133: =IF(Z$4,Z131/Z132,$I133) -> 0.03142251091 | AA133: =IF(AA$4,AA131/AA132,$I133) -> 0.03142251091
K134: 17
B135: Accounts Payable | K135: 17 | M135: ='Financial Model'!I38+'Financial Model'!I39 -> 0 | N135: ='Financial Model'!J38+'Financial Model'!J39 -> 0 | O135: ='Financial Model'!K38+'Financial Model'!K39 -> 0 | P135: ='Financial Model'!L38+'Financial Model'!L39 -> 66546.371 | Q135: ='Financial Model'!M38+'Financial Model'!M39 -> 46147.68 | R135: ='Financial Model'!N38+'Financial Model'!N39 -> 49898.926 | S135: ='Financial Model'!O38+'Financial Model'!O39 -> 0 | T135: ='Financial Model'!P38+'Financial Model'!P39 -> 0 | U135: ='Financial Model'!Q38+'Financial Model'!Q39 -> 0 | V135: ='Financial Model'!R38+'Financial Model'!R39 -> 0 | W135: ='Financial Model'!S38+'Financial Model'!S39 -> 0 | X135: ='Financial Model'!T38+'Financial Model'!T39 -> 0 | Y135: ='Financial Model'!U38+'Financial Model'!U39 -> 0 | Z135: ='Financial Model'!V38+'Financial Model'!V39 -> 0 | AA135: ='Financial Model'!W38+'Financial Model'!W39 -> 0
B136: Total Operating Cost | K136: 17 | M136: =M128 -> 81670 | N136: =N128 -> 164465 | O136: 253202 | P136: 350240 | Q136: 370955 | R136: 431502.4 | S136: 431332.615 | T136: 394957.1809 | U136: 368011.8981 | V136: 341179.6883 | W136: 325830.6648 | X136: 308626.8415 | Y136: 289364.6624 | Z136: 267818.4293 | AA136: 243737.8786
B137: Accounts Payable Percent of Op Cost | E137: 1 | F137: =SUMIF($3:$3,TRUE,137:137) -> 0.1156399733 | G137: =AVERAGEIF($4:$4,TRUE,137:137) -> 0.07167409025 | H137: ='Scenario Analysis'!N29 -> 0.12 | I137: =CHOOSE(E137,F137,G137,H137) -> 0.1156399733 | J137: TRUE | K137: =K136+J137 -> 18 | M137: =IF(M$4,M135/M136,$I137) -> 0 | N137: =IF(N$4,N135/N136,$I137) -> 0 | O137: =IF(O$4,O135/O136,$I137) -> 0 | P137: =IF(P$4,P135/P136,$I137) -> 0.1900022013 | Q137: =IF(Q$4,Q135/Q136,$I137) -> 0.1244023669 | R137: =IF(R$4,R135/R136,$I137) -> 0.1156399733 | S137: =IF(S$4,S135/S136,$I137) -> 0.1156399733 | T137: =IF(T$4,T135/T136,$I137) -> 0.1156399733 | U137: =IF(U$4,U135/U136,$I137) -> 0.1156399733 | V137: =IF(V$4,V135/V136,$I137) -> 0.1156399733 | W137: =IF(W$4,W135/W136,$I137) -> 0.1156399733 | X137: =IF(X$4,X135/X136,$I137) -> 0.1156399733 | Y137: =IF(Y$4,Y135/Y136,$I137) -> 0.1156399733 | Z137: =IF(Z$4,Z135/Z136,$I137) -> 0.1156399733 | AA137: =IF(AA$4,AA135/AA136,$I137) -> 0.1156399733
K138: 18
B139: Accrued Expenses | K139: 18 | M139: ='Financial Model'!I40 -> 12720 | N139: ='Financial Model'!J40 -> 32528 | O139: ='Financial Model'!K40 -> 57957 | P139: ='Financial Model'!L40 -> 20342.988 | Q139: ='Financial Model'!M40 -> 24172.883 | R139: ='Financial Model'!N40 -> 22969.507 | S139: ='Financial Model'!O40 -> 0 | T139: ='Financial Model'!P40 -> 0 | U139: ='Financial Model'!Q40 -> 0 | V139: ='Financial Model'!R40 -> 0 | W139: ='Financial Model'!S40 -> 0 | X139: ='Financial Model'!T40 -> 0 | Y139: ='Financial Model'!U40 -> 0 | Z139: ='Financial Model'!V40 -> 0 | AA139: ='Financial Model'!W40 -> 0
B140: Total Operating Cost | K140: 18 | M140: =M136 -> 81670 | N140: =N136 -> 164465 | O140: 253202 | P140: 350240 | Q140: 370955 | R140: 431502.4 | S140: 431332.615 | T140: 394957.1809 | U140: 368011.8981 | V140: 341179.6883 | W140: 325830.6648 | X140: 308626.8415 | Y140: 289364.6624 | Z140: 267818.4293 | AA140: 243737.8786
B141: Accrued Expenses Percent of Op Cost | E141: 1 | F141: =SUMIF($3:$3,TRUE,141:141) -> 0.05323146986 | G141: =AVERAGEIF($4:$4,TRUE,141:141) -> 0.1264840185 | H141: 0.05 | I141: =CHOOSE(E141,F141,G141,H141) -> 0.05323146986 | J141: TRUE | K141: 19 | M141: =IF(M$4,M139/M140,$I141) -> 0.1557487449 | N141: =IF(N$4,N139/N140,$I141) -> 0.1977806828 | O141: =IF(O$4,O139/O140,$I141) -> 0.2288962962 | P141: =IF(P$4,P139/P140,$I141) -> 0.05808299452 | Q141: =IF(Q$4,Q139/Q140,$I141) -> 0.06516392285 | R141: =IF(R$4,R139/R140,$I141) -> 0.05323146986 | S141: =IF(S$4,S139/S140,$I141) -> 0.05323146986 | T141: =IF(T$4,T139/T140,$I141) -> 0.05323146986 | U141: =IF(U$4,U139/U140,$I141) -> 0.05323146986 | V141: =IF(V$4,V139/V140,$I141) -> 0.05323146986 | W141: =IF(W$4,W139/W140,$I141) -> 0.05323146986 | X141: =IF(X$4,X139/X140,$I141) -> 0.05323146986 | Y141: =IF(Y$4,Y139/Y140,$I141) -> 0.05323146986 | Z141: =IF(Z$4,Z139/Z140,$I141) -> 0.05323146986 | AA141: =IF(AA$4,AA139/AA140,$I141) -> 0.05323146986
K142: 19
B143: Deferred Revenue | K143: 19 | M143: ='Financial Model'!I42 -> 0 | N143: ='Financial Model'!J42 -> 0 | O143: ='Financial Model'!K42 -> 0 | P143: ='Financial Model'!L42 -> 0 | Q143: ='Financial Model'!M42 -> 795.03 | R143: ='Financial Model'!N42 -> 3036.924 | S143: ='Financial Model'!O42 -> 0 | T143: ='Financial Model'!P42 -> 0 | U143: ='Financial Model'!Q42 -> 0 | V143: ='Financial Model'!R42 -> 0 | W143: ='Financial Model'!S42 -> 0 | X143: ='Financial Model'!T42 -> 0 | Y143: ='Financial Model'!U42 -> 0 | Z143: ='Financial Model'!V42 -> 0 | AA143: ='Financial Model'!W42 -> 0
B144: Total Revenues | K144: 19 | M144: =M124 -> 97750 | N144: =N124 -> 200109 | O144: 305530 | P144: 373683 | Q144: 424541 | R144: 455901.6 | S144: 0 | T144: 0 | U144: 0 | V144: 0 | W144: 0 | X144: 0 | Y144: 0 | Z144: 0 | AA144: 0
B145: Deferred Revenue Percent | E145: 1 | F145: =SUMIF($3:$3,TRUE,145:145) -> 0.006661358504 | G145: =AVERAGEIF($4:$4,TRUE,145:145) -> 0.001422339971 | H145: 0.01 | I145: =CHOOSE(E145,F145,G145,H145) -> 0.006661358504 | J145: TRUE | K145: 20 | M145: =IF(M$4,M143/M144,$I145) -> 0 | N145: =IF(N$4,N143/N144,$I145) -> 0 | O145: =IF(O$4,O143/O144,$I145) -> 0 | P145: =IF(P$4,P143/P144,$I145) -> 0 | Q145: =IF(Q$4,Q143/Q144,$I145) -> 0.001872681319 | R145: =IF(R$4,R143/R144,$I145) -> 0.006661358504 | S145: =IF(S$4,S143/S144,$I145) -> 0.006661358504 | T145: =IF(T$4,T143/T144,$I145) -> 0.006661358504 | U145: =IF(U$4,U143/U144,$I145) -> 0.006661358504 | V145: =IF(V$4,V143/V144,$I145) -> 0.006661358504 | W145: =IF(W$4,W143/W144,$I145) -> 0.006661358504 | X145: =IF(X$4,X143/X144,$I145) -> 0.006661358504 | Y145: =IF(Y$4,Y143/Y144,$I145) -> 0.006661358504 | Z145: =IF(Z$4,Z143/Z144,$I145) -> 0.006661358504 | AA145: =IF(AA$4,AA143/AA144,$I145) -> 0.006661358504
K146: 20
A147: Other Assets and Liabilities | K147: 20
B148: Aircraft Held for Sale | K148: 20 | M148: =IF(M4,'Financial Model'!I14,L148) -> 0 | N148: =IF(N4,'Financial Model'!J14,M148) -> 0 | O148: =IF(O4,'Financial Model'!K14,N148) -> 0 | P148: =IF(P4,'Financial Model'!L14,O148) -> 6593.069 | Q148: =IF(Q4,'Financial Model'!M14,P148) -> 6117.266 | R148: =IF(R4,'Financial Model'!N14,Q148) -> 5346.453 | S148: =IF(S4,'Financial Model'!O14,R148) -> 5346.453 | T148: =IF(T4,'Financial Model'!P14,S148) -> 5346.453 | U148: =IF(U4,'Financial Model'!Q14,T148) -> 5346.453 | V148: =IF(V4,'Financial Model'!R14,U148) -> 5346.453 | W148: =IF(W4,'Financial Model'!S14,V148) -> 5346.453 | X148: =IF(X4,'Financial Model'!T14,W148) -> 5346.453 | Y148: =IF(Y4,'Financial Model'!U14,X148) -> 5346.453 | Z148: =IF(Z4,'Financial Model'!V14,Y148) -> 5346.453 | AA148: =IF(AA4,'Financial Model'!W14,Z148) -> 5346.453
B149: Notes Receivable | K149: 20 | M149: =IF(M4,'Financial Model'!I17+'Financial Model'!I31+'Financial Model'!I32,L149) -> 0 | N149: =IF(N4,'Financial Model'!J17+'Financial Model'!J31+'Financial Model'!J32,M149) -> 0 | O149: =IF(O4,'Financial Model'!K17+'Financial Model'!K31+'Financial Model'!K32,N149) -> 0 | P149: =IF(P4,'Financial Model'!L17+'Financial Model'!L31+'Financial Model'!L32,O149) -> 371.053 | Q149: =IF(Q4,'Financial Model'!M17+'Financial Model'!M31+'Financial Model'!M32,P149) -> 317.89 | R149: =IF(R4,'Financial Model'!N17+'Financial Model'!N31+'Financial Model'!N32,Q149) -> 878.088 | S149: =IF(S4,'Financial Model'!O17+'Financial Model'!O31+'Financial Model'!O32,R149) -> 878.088 | T149: =IF(T4,'Financial Model'!P17+'Financial Model'!P31+'Financial Model'!P32,S149) -> 878.088 | U149: =IF(U4,'Financial Model'!Q17+'Financial Model'!Q31+'Financial Model'!Q32,T149) -> 878.088 | V149: =IF(V4,'Financial Model'!R17+'Financial Model'!R31+'Financial Model'!R32,U149) -> 878.088 | W149: =IF(W4,'Financial Model'!S17+'Financial Model'!S31+'Financial Model'!S32,V149) -> 878.088 | X149: =IF(X4,'Financial Model'!T17+'Financial Model'!T31+'Financial Model'!T32,W149) -> 878.088 | Y149: =IF(Y4,'Financial Model'!U17+'Financial Model'!U31+'Financial Model'!U32,X149) -> 878.088 | Z149: =IF(Z4,'Financial Model'!V17+'Financial Model'!V31+'Financial Model'!V32,Y149) -> 878.088 | AA149: =IF(AA4,'Financial Model'!W17+'Financial Model'!W31+'Financial Model'!W32,Z149) -> 878.088
C150: Total Other Assets | K150: 20 | M150: =IF(M4,SUM(M148:M149)) -> 0 | N150: =SUM(N148:N149) -> 0 | O150: 0 | P150: 6964.122 | Q150: 6435.156 | R150: 6224.541 | S150: 6224.541 | T150: 6224.541 | U150: 6224.541 | V150: 6224.541 | W150: 6224.541 | X150: 6224.541 | Y150: 6224.541 | Z150: 6224.541 | AA150: 6224.541
K151: 20
B152: Deferred Gain on Sale | K152: 20 | M152: =IF(M4,'Financial Model'!I41,L152) -> 0 | N152: =IF(N4,'Financial Model'!J41,M152) -> 0 | O152: =IF(O4,'Financial Model'!K41,N152) -> 0 | P152: =IF(P4,'Financial Model'!L41,O152) -> 0 | Q152: =IF(Q4,'Financial Model'!M41,P152) -> 0 | R152: =IF(R4,'Financial Model'!N41,Q152) -> 30255.291 | S152: =IF(S4,'Financial Model'!O41,R152) -> 30255.291 | T152: =IF(T4,'Financial Model'!P41,S152) -> 30255.291 | U152: =IF(U4,'Financial Model'!Q41,T152) -> 30255.291 | V152: =IF(V4,'Financial Model'!R41,U152) -> 30255.291 | W152: =IF(W4,'Financial Model'!S41,V152) -> 30255.291 | X152: =IF(X4,'Financial Model'!T41,W152) -> 30255.291 | Y152: =IF(Y4,'Financial Model'!U41,X152) -> 30255.291 | Z152: =IF(Z4,'Financial Model'!V41,Y152) -> 30255.291 | AA152: =IF(AA4,'Financial Model'!W41,Z152) -> 30255.291
K153: 20
B154: Restricted Cash | E154: 1 | F154: =SUMIF($3:$3,TRUE,154:154) -> 14036.924 | G154: =AVERAGEIF($4:$4,TRUE,154:154) -> 2471.992333 | H154: 0 | I154: =CHOOSE(E154,F154,G154,H154) -> 14036.924 | J154: TRUE | K154: 21 | M154: =IF(M4,'Financial Model'!I10,$I$154) -> 0 | N154: =IF(N4,'Financial Model'!J10,$I$154) -> 0 | O154: =IF(O4,'Financial Model'!K10,$I$154) -> 0 | P154: =IF(P4,'Financial Model'!L10,$I$154) -> 0 | Q154: =IF(Q4,'Financial Model'!M10,$I$154) -> 795.03 | R154: =IF(R4,'Financial Model'!N10,$I$154) -> 14036.924 | S154: =IF(S4,'Financial Model'!O10,$I$154) -> 14036.924 | T154: =IF(T4,'Financial Model'!P10,$I$154) -> 14036.924 | U154: =IF(U4,'Financial Model'!Q10,$I$154) -> 14036.924 | V154: =IF(V4,'Financial Model'!R10,$I$154) -> 14036.924 | W154: =IF(W4,'Financial Model'!S10,$I$154) -> 14036.924 | X154: =IF(X4,'Financial Model'!T10,$I$154) -> 14036.924 | Y154: =IF(Y4,'Financial Model'!U10,$I$154) -> 14036.924 | Z154: =IF(Z4,'Financial Model'!V10,$I$154) -> 14036.924 | AA154: =IF(AA4,'Financial Model'!W10,$I$154) -> 14036.924
K155: 21
B156: Other Income | E156: 3 | F156: =SUMIF($3:$3,TRUE,156:156) -> -103 | G156: =AVERAGEIF($4:$4,TRUE,156:156) -> 4714 | H156: 0 | I156: =CHOOSE(E156,F156,G156,H156) -> 0 | J156: TRUE | K156: 22 | M156: =IF(M4,SUM('Financial Model'!I76:I79),$I$156) -> 2900 | N156: =IF(N4,SUM('Financial Model'!J76:J79),$I$156) -> 1524 | O156: =IF(O4,SUM('Financial Model'!K76:K79),$I$156) -> 2840 | P156: =IF(P4,SUM('Financial Model'!L76:L79),$I$156) -> 19856 | Q156: =IF(Q4,SUM('Financial Model'!M76:M79),$I$156) -> 1267 | R156: =IF(R4,SUM('Financial Model'!N76:N79),$I$156) -> -103 | S156: =IF(S4,SUM('Financial Model'!O76:O79),$I$156) -> 0 | T156: =IF(T4,SUM('Financial Model'!P76:P79),$I$156) -> 0 | U156: =IF(U4,SUM('Financial Model'!Q76:Q79),$I$156) -> 0 | V156: =IF(V4,SUM('Financial Model'!R76:R79),$I$156) -> 0 | W156: =IF(W4,SUM('Financial Model'!S76:S79),$I$156) -> 0 | X156: =IF(X4,SUM('Financial Model'!T76:T79),$I$156) -> 0 | Y156: =IF(Y4,SUM('Financial Model'!U76:U79),$I$156) -> 0 | Z156: =IF(Z4,SUM('Financial Model'!V76:V79),$I$156) -> 0 | AA156: =IF(AA4,SUM('Financial Model'!W76:W79),$I$156) -> 0
K157: 22
A158: Cash, Debt and Minority Interest | K158: 22
B159: Cash Balance | K159: 22 | M159: ='Financial Model'!I9 -> 1000 | N159: ='Financial Model'!J9 -> 1000 | O159: ='Financial Model'!K9 -> 1000 | P159: ='Financial Model'!L9 -> 1091.96 | Q159: ='Financial Model'!M9 -> 2324.353 | R159: ='Financial Model'!N9 -> 3282.142 | S159: ='Financial Model'!O9 -> 0 | T159: ='Financial Model'!P9 -> 0 | U159: ='Financial Model'!Q9 -> 0 | V159: ='Financial Model'!R9 -> 0 | W159: ='Financial Model'!S9 -> 0 | X159: ='Financial Model'!T9 -> 0 | Y159: ='Financial Model'!U9 -> 0 | Z159: ='Financial Model'!V9 -> 0 | AA159: ='Financial Model'!W9 -> 0
B160: Restricted Cash | K160: 22 | M160: ='Financial Model'!I10 -> 0 | N160: ='Financial Model'!J10 -> 0 | O160: ='Financial Model'!K10 -> 0 | P160: ='Financial Model'!L10 -> 0 | Q160: ='Financial Model'!M10 -> 795.03 | R160: ='Financial Model'!N10 -> 14036.924 | S160: ='Financial Model'!O10 -> 0 | T160: ='Financial Model'!P10 -> 0 | U160: ='Financial Model'!Q10 -> 0 | V160: ='Financial Model'!R10 -> 0 | W160: ='Financial Model'!S10 -> 0 | X160: ='Financial Model'!T10 -> 0 | Y160: ='Financial Model'!U10 -> 0 | Z160: ='Financial Model'!V10 -> 0 | AA160: ='Financial Model'!W10 -> 0
B161: Total | K161: 22 | M161: =SUM(M159:M160) -> 1000 | N161: =SUM(N159:N160) -> 1000 | O161: 1000 | P161: 1091.96 | Q161: 3119.383 | R161: 17319.066 | S161: 0 | T161: 0 | U161: 0 | V161: 0 | W161: 0 | X161: 0 | Y161: 0 | Z161: 0 | AA161: 0
B162: Average | K162: 22 | M162: =AVERAGE(L161:M161) -> 1000 | N162: =AVERAGE(M161:N161) -> 1000 | O162: 1000 | P162: 1045.98 | Q162: 2105.6715 | R162: 10219.2245 | S162: 8659.533 | T162: 0 | U162: 0 | V162: 0 | W162: 0 | X162: 0 | Y162: 0 | Z162: 0 | AA162: 0
K163: 22
B164: Interest Income | K164: 22 | M164: ='Financial Model'!I75 -> 0 | N164: ='Financial Model'!J75 -> 36 | O164: ='Financial Model'!K75 -> 113 | P164: ='Financial Model'!L75 -> 315 | Q164: ='Financial Model'!M75 -> 379 | R164: ='Financial Model'!N75 -> 349 | S164: ='Financial Model'!O75 -> 0 | T164: ='Financial Model'!P75 -> 0 | U164: ='Financial Model'!Q75 -> 0 | V164: ='Financial Model'!R75 -> 0 | W164: ='Financial Model'!S75 -> 0 | X164: ='Financial Model'!T75 -> 0 | Y164: ='Financial Model'!U75 -> 0 | Z164: ='Financial Model'!V75 -> 0 | AA164: ='Financial Model'!W75 -> 0
B165: Interest Income Rate | E165: 3 | F165: =SUMIF($3:$3,TRUE,165:165) -> 0.04781184717 | G165: =AVERAGEIF($4:$4,TRUE,165:165) -> 0.1129924869 | H165: 0.095 | I165: 0.03 | J165: TRUE | K165: 23 | M165: =IF(M$4,M164/M162,$I$165) -> 0 | N165: =IF(N$4,N164/N162,$I$165) -> 0.036 | O165: =IF(O$4,O164/O162,$I$165) -> 0.113 | P165: =IF(P$4,P164/P162,$I$165) -> 0.3011529857 | Q165: =IF(Q$4,Q164/Q162,$I$165) -> 0.1799900887 | R165: =IF(R$4,R164/R162/R2,$I$165) -> 0.04781184717 | S165: =IF(S$4,S164/S162,$I$165) -> 0.03 | T165: 0.03 | U165: 0.03 | V165: 0.03 | W165: 0.03 | X165: 0.03 | Y165: 0.03 | Z165: 0.03 | AA165: 0.03
K166: 23
B167: Total Debt | K167: 23 | M167: ='Financial Model'!I56 -> 80010 | N167: ='Financial Model'!J56 -> 84936 | O167: ='Financial Model'!K56 -> 137405 | P167: ='Financial Model'!L56 -> 220471.593 | Q167: ='Financial Model'!M56 -> 238350.842 | R167: ='Financial Model'!N56 -> 255092.981 | S167: ='Financial Model'!O56 -> 0 | T167: ='Financial Model'!P56 -> 0 | U167: ='Financial Model'!Q56 -> 0 | V167: ='Financial Model'!R56 -> 0 | W167: ='Financial Model'!S56 -> 0 | X167: ='Financial Model'!T56 -> 0 | Y167: ='Financial Model'!U56 -> 0 | Z167: ='Financial Model'!V56 -> 0 | AA167: ='Financial Model'!W56 -> 0
B168: Average | K168: 23 | M168: =AVERAGE(L167:M167) -> 80010 | N168: =AVERAGE(M167:N167) -> 82473 | O168: 111170.5 | P168: 178938.2965 | Q168: 229411.2175 | R168: 246721.9115 | S168: 127546.4905 | T168: 0 | U168: 0 | V168: 0 | W168: 0 | X168: 0 | Y168: 0 | Z168: 0 | AA168: 0
K169: 23
B170: Interest Expense | K170: 23 | M170: =-'Financial Model'!I74 -> 4396 | N170: =-'Financial Model'!J74 -> 6781 | O170: =-'Financial Model'!K74 -> 8121 | P170: =-'Financial Model'!L74 -> 15064 | Q170: =-'Financial Model'!M74 -> 22012 | R170: =-'Financial Model'!N74 -> 20089 | S170: =-'Financial Model'!O74 -> 0 | T170: =-'Financial Model'!P74 -> 0 | U170: =-'Financial Model'!Q74 -> 0 | V170: =-'Financial Model'!R74 -> 0 | W170: =-'Financial Model'!S74 -> 0 | X170: =-'Financial Model'!T74 -> 0 | Y170: =-'Financial Model'!U74 -> 0 | Z170: =-'Financial Model'!V74 -> 0 | AA170: =-'Financial Model'!W74 -> 0
B171: Interest Expense Rate | E171: 3 | F171: =SUMIF($3:$3,TRUE,171:171) -> 0.1139931181 | G171: =AVERAGEIF($4:$4,TRUE,171:171) -> 0.08405707831 | H171: ='Scenario Analysis'!O29 -> 0.085 | I171: =CHOOSE(E171,F171,G171,H171) -> 0.085 | J171: TRUE | K171: 24 | M171: =IF(M$4,M170/M168,$I$171) -> 0.05494313211 | N171: =IF(N$4,N170/N168,$I$171) -> 0.08222084804 | O171: =IF(O$4,O170/O168,$I$171) -> 0.0730499548 | P171: =IF(P$4,P170/P168,$I$171) -> 0.08418544434 | Q171: =IF(Q$4,Q170/Q168,$I$171) -> 0.09594997246 | R171: =IF(R$4,R170/R168/R2,$I$171) -> 0.1139931181 | S171: =IF(S$4,S170/S168,$I$171) -> 0.085 | T171: 0.085 | U171: 0.085 | V171: 0.085 | W171: 0.085 | X171: 0.085 | Y171: 0.085 | Z171: 0.085 | AA171: 0.085
K172: 24
B173: Minority Interest Balance | K173: 24 | M173: ='Financial Model'!I52 -> 0 | N173: ='Financial Model'!J52 -> 0 | O173: ='Financial Model'!K52 -> 0 | P173: ='Financial Model'!L52 -> 3944.07 | Q173: ='Financial Model'!M52 -> 3551.735 | R173: ='Financial Model'!N52 -> 3572.437 | S173: ='Financial Model'!O52 -> 0 | T173: ='Financial Model'!P52 -> 0 | U173: ='Financial Model'!Q52 -> 0 | V173: ='Financial Model'!R52 -> 0 | W173: ='Financial Model'!S52 -> 0 | X173: ='Financial Model'!T52 -> 0 | Y173: ='Financial Model'!U52 -> 0 | Z173: ='Financial Model'!V52 -> 0 | AA173: ='Financial Model'!W52 -> 0
B174: Minority Interest Income | K174: 24 | M174: =-'Financial Model'!I82 -> 424 | N174: =-'Financial Model'!J82 -> 1458 | O174: =-'Financial Model'!K82 -> 2758 | P174: =-'Financial Model'!L82 -> 3092 | Q174: =-'Financial Model'!M82 -> 1146 | R174: =-'Financial Model'!N82 -> 1859 | S174: =-'Financial Model'!O82 -> 0 | T174: =-'Financial Model'!P82 -> 0 | U174: =-'Financial Model'!Q82 -> 0 | V174: =-'Financial Model'!R82 -> 0 | W174: =-'Financial Model'!S82 -> 0 | X174: =-'Financial Model'!T82 -> 0 | Y174: =-'Financial Model'!U82 -> 0 | Z174: =-'Financial Model'!V82 -> 0 | AA174: =-'Financial Model'!W82 -> 0
K175: 24
B176: Income Before Minority Interest | K176: 24 | M176: ='Financial Model'!I81 -> 5585 | N176: ='Financial Model'!J81 -> 18001 | O176: ='Financial Model'!K81 -> 33351 | P176: ='Financial Model'!L81 -> 7578 | Q176: ='Financial Model'!M81 -> 1129 | R176: ='Financial Model'!N81 -> -28883 | S176: ='Financial Model'!O81 -> 0 | T176: ='Financial Model'!P81 -> 0 | U176: ='Financial Model'!Q81 -> 0 | V176: ='Financial Model'!R81 -> 0 | W176: ='Financial Model'!S81 -> 0 | X176: ='Financial Model'!T81 -> 0 | Y176: ='Financial Model'!U81 -> 0 | Z176: ='Financial Model'!V81 -> 0 | AA176: ='Financial Model'!W81 -> 0
B177: Minority Interest Rate | E177: 3 | F177: =SUMIF($3:$3,TRUE,177:177) -> -0.06436312017 | G177: =AVERAGEIF($4:$4,TRUE,177:177) -> 0.266387831 | H177: 0.07 | I177: =CHOOSE(E177,F177,G177,H177) -> 0.07 | J177: TRUE | K177: 25 | M177: =IF(M4,M174/M176,$I$177) -> 0.07591763653 | N177: 0.08099550025 | O177: 0.08269617103 | P177: 0.4080232251 | Q177: 1.015057573 | R177: -0.06436312017 | S177: 0.07 | T177: 0.07 | U177: 0.07 | V177: 0.07 | W177: 0.07 | X177: 0.07 | Y177: 0.07 | Z177: 0.07 | AA177: 0.07
K178: 25
B179: Cash as Percent of Revenues | E179: 3 | F179: =SUMIF($3:$3,TRUE,179:179) -> 0.007199233343 | G179: =AVERAGEIF($4:$4,TRUE,179:179) -> 0.005682804112 | H179: 0.005 | I179: =CHOOSE(E179,F179,G179,H179) -> 0.005 | J179: TRUE | K179: 26 | M179: =IF(M4,M159/M124,$I$179) -> 0.01023017903 | N179: 0.004997276484 | O179: 0.003273001015 | P179: 0.002922155945 | Q179: 0.00547497886 | R179: 0.007199233343 | S179: 0.005 | T179: 0.005 | U179: 0.005 | V179: 0.005 | W179: 0.005 | X179: 0.005 | Y179: 0.005 | Z179: 0.005 | AA179: 0.005
A181: Existing Debt Financing
B182: Initial Debt | E182: 250000
B183: Repayment Years | E183: 6
B184: Repayment Amount | E184: =E182/E183 -> 41666.66667
B185: Interest Rate | E185: ='Scenario Analysis'!O29 -> 0.085
B186: Date of Issue | E186: 1997
A196: Graph Data | E196: Number | F196: Row
D197: =INDEX(B:B,F197)&INDEX(C:C,F197)&INDEX(D:D,F197) -> Net Capacity | E197: 1 | F197: =MATCH(E197,K:K,0) -> 18 | M197: =INDEX(M:M,$F197) -> 0 | N197: 0 | O197: 0 | P197: 0 | Q197: 0 | R197: 5222986.667 | S197: 5222986.667 | T197: 5713114.9 | U197: 5717164.737 | V197: 5469719.558 | W197: 5197529.861 | X197: 4898121.194 | Y197: 4568771.66 | Z197: 4206487.173 | AA197: 3807974.238
D198: Flight Hours | E198: 2 | F198: 20 | M198: 39404 | N198: 55220 | O198: 76346 | P198: 84058 | Q198: 91690 | R198: 70721 | S198: 28288.4 | T198: 108300.5021 | U198: 108377.2727 | V198: 103686.5851 | W198: 98526.82878 | X198: 92851.09679 | Y198: 86607.79162 | Z198: 79740.15592 | AA198: 72185.75665
D199: Freight Revenues | E199: 3 | F199: 31 | M199: 95144 | N199: 194525 | O199: 298081 | P199: 359404 | Q199: 388193 | R199: 302345 | S199: 0 | T199: 0 | U199: 0 | V199: 0 | W199: 0 | X199: 0 | Y199: 0 | Z199: 0 | AA199: 0
D200: Price per lb Applied | E200: 4 | F200: 42 | M200: 0 | N200: 0 | O200: 0 | P200: 0 | Q200: 0 | R200: 81.04232827 | S200: 81.04232827 | T200: 81.04232827 | U200: 81.04232827 | V200: 81.04232827 | W200: 81.04232827 | X200: 81.04232827 | Y200: 81.04232827 | Z200: 81.04232827 | AA200: 81.04232827
D201: Revenues | E201: 5 | F201: 43 | M201: 95144 | N201: 194525 | O201: 298081 | P201: 359404 | Q201: 388193 | R201: 302345 | S201: 120938 | T201: 463004.1332 | U201: 463332.3414 | V201: 443278.808 | W201: 421219.9212 | X201: 396955.1457 | Y201: 370263.8927 | Z201: 340903.5144 | AA201: 308607.0982
D202: Revenues per Flight Hour | E202: 6 | F202: 44 | M202: 2.4145772 | N202: 3.522727273 | O202: 3.904343384 | P202: 4.275666801 | Q202: 4.233755044 | R202: 4.275179932 | S202: 4.275179932 | T202: 4.275179932 | U202: 4.275179932 | V202: 4.275179932 | W202: 4.275179932 | X202: 4.275179932 | Y202: 4.275179932 | Z202: 4.275179932 | AA202: 4.275179932
D203: Escalated Revenues | E203: 7 | F203: 50 | M203: 2606 | N203: 5584 | O203: 7449 | P203: 14279 | Q203: 36348 | R203: 23299 | S203: 11206.08093 | T203: 40005.70892 | U203: 40805.8231 | V203: 41621.93956 | W203: 42454.37835 | X203: 43303.46592 | Y203: 44169.53524 | Z203: 45052.92594 | AA203: 45953.98446
D204: Flight per Hour - Company Case | E204: 8 | F204: 60 | M204: 0.9455639021 | N204: 1.138663528 | O204: 1.514342598 | P204: 2.007839825 | Q204: 1.63873923 | R204: 1.78459015 | S204: 1.78459015 | T204: 1.4 | U204: 1.25 | V204: 1.25 | W204: 1.25 | X204: 1.25 | Y204: 1.25 | Z204: 1.25 | AA204: 1.25
D205: Maint per Hour - Company | E205: 9 | F205: 70 | M205: 0.5612120597 | N205: 0.9404744658 | O205: 0.8477457889 | P205: 1.229972162 | Q205: 1.255120515 | R205: 1.519096167 | S205: 1.519096167 | T205: 1.2 | U205: 1.1 | V205: 1 | W205: 1 | X205: 1 | Y205: 1 | Z205: 1 | AA205: 1
D206: Fuel per Hour - Base Case | E206: 10 | F206: 80 | M206: 0.4189422394 | N206: 0.6981890619 | O206: 0.751342572 | P206: 0.6488139142 | Q206: 0.9021376377 | R206: 0.779047242 | S206: 0.779047242 | T206: 0.7946281868 | U206: 0.8105207506 | V206: 0.8267311656 | W206: 0.8432657889 | X206: 0.8601311047 | Y206: 0.8773337267 | Z206: 0.8948804013 | AA206: 0.9127780093
D207: SG&A per Revenue - Company | E207: 11 | F207: 90 | M207: =INDEX(M:M,$F207) -> 0.04447994619 | N207: 0.0491145097 | O207: 0.04452816516 | P207: 0.06031095925 | Q207: 0.05638690033 | R207: 0.05903190064 | S207: 0.05903190064 | T207: 0.054 | U207: 0.05 | V207: 0.045 | W207: 0.045 | X207: 0.045 | Y207: 0.045 | Z207: 0.045 | AA207: 0.045
D208: Per Revenue | E208: 12 | F208: 93 | M208: 0.01636466829 | N208: 0.007952705308 | O208: 0.007484542792 | P208: 0.005180799323 | Q208: 0.002604374628 | R208: 0.005401114621 | S208: 0.005 | T208: 0.005 | U208: 0.005 | V208: 0.005 | W208: 0.005 | X208: 0.005 | Y208: 0.005 | Z208: 0.005 | AA208: 0.005
D209: Company Case Maintenance Expenditures | E209: 13 | F209: 104 | M209: 0 | N209: 0 | O209: 0 | P209: 0 | Q209: 0 | R209: 0 | S209: 21803.6 | T209: 25000 | U209: 25000 | V209: 25000 | W209: 20000 | X209: 20000 | Y209: 20000 | Z209: 20000 | AA209: 20000
D210: Gross Plant Depreciation Rate | E210: 14 | F210: 114 | M210: 0.07672108786 | N210: 0.0977356056 | O210: 0.06095585347 | P210: 0.06807132422 | Q210: 0.08587043254 | R210: 0.1022636124 | S210: 0.1022636124 | T210: 0.1022636124 | U210: 0.1022636124 | V210: 0.1022636124 | W210: 0.1022636124 | X210: 0.1022636124 | Y210: 0.1022636124 | Z210: 0.1022636124 | AA210: 0.1022636124
D211: A/R Percent | E211: 15 | F211: 125 | M211: 0.05604092072 | N211: 0.1790374246 | O211: 0.1470232056 | P211: 0.2479751126 | Q211: 0.1649826589 | R211: 0.1451266721 | S211: 0.15 | T211: 0.15 | U211: 0.15 | V211: 0.15 | W211: 0.15 | X211: 0.15 | Y211: 0.15 | Z211: 0.15 | AA211: 0.15
... 49 more rows

Sheet Financial Model
A1: Timing
B2: Year | I2: 1992 | J2: 1993 | K2: 1994 | L2: 1995 | M2: 1996 | N2: 1997 | O2: =N2 -> 1997 | P2: =O2+1 -> 1998 | Q2: =P2+1 -> 1999 | R2: 2000 | S2: 2001 | T2: 2002 | U2: 2003 | V2: 2004 | W2: 2005
B3: Months | I3: 12 | J3: 12 | K3: 12 | L3: 12 | M3: 12 | N3: 9 | O3: 3 | P3: 12 | Q3: 12 | R3: 12 | S3: 12 | T3: 12 | U3: 12 | V3: 12 | W3: 12
B4: Annualisation Factor | I4: 1 | J4: 1 | K4: 1 | L4: 1 | M4: 1 | N4: =1/1.4 -> 0.7142857143 | O4: =1-N4 -> 0.2857142857 | P4: 1 | Q4: 1 | R4: 1 | S4: 1 | T4: 1 | U4: 1 | V4: 1 | W4: 1
B5: Historic Switch | E5: Debt | F5: IC Cap | G5: IC Dir | H5: Test | I5: TRUE | J5: TRUE | K5: TRUE | L5: TRUE | M5: TRUE | N5: TRUE | O5: FALSE | P5: FALSE | Q5: FALSE | R5: FALSE | S5: FALSE | T5: FALSE | U5: FALSE | V5: FALSE | W5: FALSE
A6: Historic Financial Statements
B7: Balance Sheet
C8: CURRENT ASSETS:
D9: Cash | I9: 1000 | J9: 1000 | K9: 1000 | L9: 1091.96 | M9: 2324.353 | N9: 3282.142
D10: Restricted cash | L10: 0 | M10: 795.03 | N10: 14036.924
D11: Accounts receivable, net (Notes 1 and 3) | I11: 5478 | J11: 35827 | K11: 44920 | L11: 88273.823 | M11: 67081.125 | N11: 64908.684
D12: Accounts receivable 0 related parties | L12: 4390.261 | M12: 2960.778 | N12: 1254.798
D13: Expendable parts and supplies | L13: 12330.854 | M13: 20742.14 | N13: 24624.354
D14: Aircraft held for resale (Note 4) | L14: 6593.069 | M14: 6117.266 | N14: 5346.453
D15: Deposits, prepaid expenses and other assets | L15: 4914.056 | M15: 8018.273 | N15: 7326.008
D16: Prepaid fuel | L16: 4080.373 | M16: 5828.047 | N16: 6999.565
D17: Notes receivable, current | L17: 186.085 | M17: 186.085 | N17: 100.804
D18: Total current assets | L18: 121860.481 | M18: 114053.097 | N18: 127879.732
D19: PROPERTY AND EQUIPMENT: | L19: 0 | M19: 0 | N19: 0
D20: Land and improvements | L20: 228.678 | M20: 228.678 | N20: 228.678
D21: Building and leasehold improvements (Note 4) | L21: 9347.825 | M21: 12752.356 | N21: 14363.228
D22: Rotable parts (Note 3) | L22: 14560.287 | M22: 16779.386 | N22: 17661.392
D23: Equipment (Note 3) | L23: 19685.442 | M23: 23677.64 | N23: 26317.512
D24: Aircraft (Note 3) | L24: 264266.383 | M24: 320276.14 | N24: 303778.995
D25: Total | I25: 117295 | J25: 127098 | K25: 226541 | L25: 308088.615 | M25: 373714.2 | N25: 362349.805
D26: Less accumulated depreciation | L26: 81246.881 | M26: 109707.512 | N26: 113883.56
D27: Net | I27: 117295 | J27: 127098 | K27: 226541 | L27: 226841.734 | M27: 264006.688 | N27: 248466.245
D28: Aircraft in modification (Note 3) | L28: 25557.078 | M28: 988.541 | N28: 21925.586
D29: Construction in progress | L29: 3152.56 | M29: 923.15 | N29: 1427.361
D30: Total property and equipment, net | L30: 255551.372 | M30: 265918.379 | N30: 271819.192
D31: NOTES RECEIVABLE, LESS CURRENT PORTION | L31: 184.968 | M31: 131.805 | N31: 0
D32: RECEIVABLE FROM AFFILIATED COMPANY | L32: 0 | M32: 0 | N32: 777.284
D33: TOTAL ASSETS (Notes 3 and 4) | I33: 123773 | J33: 163925 | K33: 272461 | L33: 377596.821 | M33: 380103.281 | N33: 400476.208
B35: LIABILITIES AND STOCKHOLDER'S EQUITY | L35: 6779.154 | M35: 6303.351 | N35: 6224.541
C36: CURRENT LIABILITIES:
D37: Accounts payable:
D38: Trade (Note 1) | L38: 62125.228 | M38: 46070.23 | N38: 49898.805
D39: Related parties | L39: 4421.143 | M39: 77.45 | N39: 0.121
D40: Accrued liabilities | I40: 12720 | J40: 32528 | K40: 57957 | L40: 20342.988 | M40: 24172.883 | N40: 22969.507
D41: Deferred gain on sale of aircraft (Note 12) | L41: 0 | M41: 0 | N41: 30255.291
D42: Deferred revenue | L42: 0 | M42: 795.03 | N42: 3036.924
D43: Notes payable to bank, reclassified as current (Note 3) | E43: 1 | L43: 0 | M43: 47105.413 | N43: 55434.351
D44: Long term debt, reclassified as current (Note 4) | E44: 1 | L44: 0 | M44: 155910.954 | N44: 104623.812
D45: Notes payable to bank (Note 3) | E45: 1 | L45: 12226.496 | M45: 1024.035 | N45: 2994.849
D46: Current maturities of long-term debt (Note 4) | E46: 1 | L46: 42444.612 | M46: 34310.44 | N46: 91739.507
D47: Total current liabilities | E47: 0 | L47: 141560.467 | M47: 309466.435 | N47: 360953.167
D48: NOTES PAYABLE, NONCURRENT (Note 3) | E48: 1 | L48: 34983 | M48: 0 | N48: 0
D49: LONG-TERM DEBT, LESS CURRENT PORTION (Note 4) | E49: 1 | I49: 80010 | J49: 84936 | K49: 137405 | L49: 130717.485 | M49: 0 | N49: 0
D50: NOTE PAYABLE TO STOCKHOLDER (Note 8) | E50: 1 | L50: 100 | M50: 0 | N50: 300.462
D51: Total liabilities | L51: 307360.952 | M51: 309466.435 | N51: 361253.629
D52: MINORITY INTEREST IN AMERICAN INTERNATIONAL CARGO | L52: 3944.07 | M52: 3551.735 | N52: 3572.437
D53: Total stockholder's equity | I53: 31043 | J53: 46461 | K53: 77099 | L53: 66291.799 | M53: 67085.111 | N53: 35650.142
D54: TOTAL LIABILITIES AND STOCKHOLDER'S EQUITY | I54: 123773 | J54: 163925 | K54: 272461 | L54: 377596.821 | M54: 380103.281 | N54: 400476.208
D56: Total Debt | I56: =SUMPRODUCT(I37:I50,$E$37:$E$50) -> 80010 | J56: =SUMPRODUCT(J37:J50,$E$37:$E$50) -> 84936 | K56: 137405 | L56: 220471.593 | M56: 238350.842 | N56: 255092.981
D57: Historic Test | I57: TRUE | J57: TRUE | K57: TRUE | L57: TRUE | M57: TRUE | N57: TRUE
B59: Income Statement
C60: Revenue
D61: Air freight carrier services | I61: 95144 | J61: 194525 | K61: 298081 | L61: 359404 | M61: 388193 | N61: 302345
D62: Maintenance and other(1) | I62: 2606 | J62: 5584 | K62: 7449 | L62: 14279 | M62: 36348 | N62: 23299
D63: Total revenues | I63: 97750 | J63: 200109 | K63: 305530 | L63: 373683 | M63: 424541 | N63: 325644
C64: Operating Costs
D65: Flight | I65: 37259 | J65: 62877 | K65: 115614 | L65: 168775 | M65: 150256 | N65: 126208
D66: Maintenance | I66: 22114 | J66: 51933 | K66: 64722 | L66: 103389 | M66: 115082 | N66: 107432
D67: Fuel | I67: 16508 | J67: 38554 | K67: 57362 | L67: 54538 | M67: 82717 | N67: 55095
D68: Depreciation | I68: 8999 | J68: 12422 | K68: 13809 | L68: 20972 | M68: 32091 | N68: 26468
D69: Selling, general and administrative | I69: 4232 | J69: 9554 | K69: 13273 | L69: 21676 | M69: 21889 | N69: 17848
D70: Provision for doubtful accounts | I70: 1557 | J70: 1547 | K70: 2231 | L70: 1862 | M70: 1011 | N70: 1633
D71: Total operating costs and expenses | I71: 90669 | J71: 176887 | K71: 267011 | L71: 371212 | M71: 403046 | N71: 334684
D72: Income (loss) from operations | I72: 7081 | J72: 23222 | K72: 38519 | L72: 2471 | M72: 21495 | N72: -9040
C73: Other Income (Expense)
D74: Interest expense | I74: -4396 | J74: -6781 | K74: -8121 | L74: -15064 | M74: -22012 | N74: -20089
D75: Interest income | I75: 0 | J75: 36 | K75: 113 | L75: 315 | M75: 379 | N75: 349
D76: Gain on disposition of aircraft held for resale | I76: 3018 | J76: 1945 | K76: 3390 | L76: 11708 | M76: 131 | N76: 624
D77: Gain on contract termination | I77: 0 | J77: 0 | K77: 0 | L77: 0 | M77: 1123 | N77: 0
D78: Gain on insurance settlement(3) | I78: 0 | J78: 0 | K78: 0 | L78: 8148 | M78: 0 | N78: 542
D79: Miscellaneous | I79: -118 | J79: -421 | K79: -550 | L79: 0 | M79: 13 | N79: -1269
D80: Total other income (expense) | I80: -1496 | J80: -5221 | K80: -5168 | L80: 5107 | M80: -20365 | N80: -19843
D81: Income (loss) before minority interest | I81: 5585 | J81: 18001 | K81: 33351 | L81: 7578 | M81: 1129 | N81: -28883
D82: Minority interest(4) | I82: -424 | J82: -1458 | K82: -2758 | L82: -3092 | M82: -1146 | N82: -1859
D83: Net income (loss)(5) | I83: 5161 | J83: 16543 | K83: 30593 | L83: 4486 | M83: -17 | N83: -30742
D85: Unaudited pro forma net income (loss)(6) | I85: 3200 | J85: 10257 | K85: 18968 | L85: 2781 | M85: -17 | N85: -30742
D86: OTHER FINANCIAL DATA:
D87: Capital expenditures | I87: 55863 | J87: 20468 | K87: 77832 | L87: 153719 | M87: 53413 | N87: 54509
D88: Adjusted EBITDA(7) | I88: 16080 | J88: 35645 | K88: 52328 | L88: 23443 | M88: 53586 | N88: 16159
D89: Ratio of adjusted EBITDA to total interest
D90: epense(8) | I90: 3.7 | J90: 5.3 | K90: 6.4 | L90: 1.6 | M90: 2.4
D91: Ratio of earnings to fied charges(9) | I91: 2 | J91: 2.4 | K91: 3.3 | L91: 1.2 | M91: 1
B92: Other Data
D93: Working capital (deficit)(10) | I93: -6242 | J93: 4299 | K93: -12037 | L93: -19700 | M93: -195413 | N93: -233073
D94: Current Liabilities | I94: 12720 | J94: 32528 | K94: 57957 | L94: 20342.988 | M94: 24172.883 | N94: 22969.507
D95: Current Assets | I95: 6478 | J95: 36827 | K95: 45920 | L95: 642.988 | M95: -171240.117 | N95: -210103.493
D96: Cash Assumed | I96: 1000 | J96: 1000 | K96: 1000 | L96: 1091.96 | M96: 2324.353 | N96: 3282.142
D97: Remaining Current Assets | I97: 5478 | J97: 35827 | K97: 44920
D98: Total assets | I98: 123773 | J98: 163925 | K98: 272461 | L98: 377597 | M98: 380103 | N98: 400476
D99: Total debt | I99: 80010 | J99: 84936 | K99: 137405 | L99: 220471 | M99: 238350 | N99: 255093
D100: Stockholder's equity | I100: 31043 | J100: 46461 | K100: 77099 | L100: 66292 | M100: 67085 | N100: 35650
C102: OPERATING DATA:
D103: Aircraft under operating leases | I103: 7 | J103: 8 | K103: 4 | L103: 4 | M103: 2 | N103: 2
D104: Aircraft owned | I104: 52 | J104: 57 | K104: 82 | L104: 91 | M104: 95 | N104: 84
D105: Total aircraft | I105: 59 | J105: 65 | K105: 86 | L105: 95 | M105: 97 | N105: 86
D106: Flight hours(11) | I106: 39404 | J106: 55220 | K106: 76346 | L106: 84058 | M106: 91690 | N106: 70721
A108: Operating Analysis
B109: Airfreight
C110: Capacity of Planes | N110: =Assumptions!R15*N4 -> 3730704.762 | O110: =Assumptions!S18*'Financial Model'!O4 -> 1492281.905 | P110: =Assumptions!T18*'Financial Model'!P4 -> 5713114.9 | Q110: =Assumptions!U18*'Financial Model'!Q4 -> 5717164.737 | R110: =Assumptions!V18*'Financial Model'!R4 -> 5469719.558 | S110: =Assumptions!W18*'Financial Model'!S4 -> 5197529.861 | T110: =Assumptions!X18*'Financial Model'!T4 -> 4898121.194 | U110: =Assumptions!Y18*'Financial Model'!U4 -> 4568771.66 | V110: =Assumptions!Z18*'Financial Model'!V4 -> 4206487.173 | W110: =Assumptions!AA18*'Financial Model'!W4 -> 3807974.238
C111: Flight Hours | I111: =Assumptions!M20 -> 39404 | J111: =Assumptions!N20 -> 55220 | K111: =Assumptions!O20 -> 76346 | L111: =Assumptions!P20 -> 84058 | M111: =Assumptions!Q20 -> 91690 | N111: =Assumptions!R20 -> 70721 | O111: =Assumptions!S20 -> 28288.4 | P111: =Assumptions!T20 -> 108300.5021 | Q111: =Assumptions!U20 -> 108377.2727 | R111: =Assumptions!V20 -> 103686.5851 | S111: =Assumptions!W20 -> 98526.82878 | T111: =Assumptions!X20 -> 92851.09679 | U111: =Assumptions!Y20 -> 86607.79162 | V111: =Assumptions!Z20 -> 79740.15592 | W111: =Assumptions!AA20 -> 72185.75665
B113: Price per Pound | N113: =Assumptions!R42 -> 81.04232827 | O113: =Assumptions!S42 -> 81.04232827 | P113: =Assumptions!T42 -> 81.04232827 | Q113: =Assumptions!U42 -> 81.04232827 | R113: =Assumptions!V42 -> 81.04232827 | S113: =Assumptions!W42 -> 81.04232827 | T113: =Assumptions!X42 -> 81.04232827 | U113: =Assumptions!Y42 -> 81.04232827 | V113: =Assumptions!Z42 -> 81.04232827 | W113: =Assumptions!AA42 -> 81.04232827
B115: Air Transport Revenues | I115: =IF(I5,I61,I110*I113/1000) -> 95144 | J115: 194525 | K115: 298081 | L115: 359404 | M115: 388193 | N115: 302345 | O115: 120938 | P115: 463004.1332 | Q115: 463332.3414 | R115: 443278.808 | S115: 421219.9212 | T115: 396955.1457 | U115: 370263.8927 | V115: 340903.5144 | W115: 308607.0982
B116: Maintenance Revenues | I116: =Assumptions!M50 -> 2606 | J116: =Assumptions!N50 -> 5584 | K116: =Assumptions!O50 -> 7449 | L116: =Assumptions!P50 -> 14279 | M116: =Assumptions!Q50 -> 36348 | N116: =Assumptions!R50 -> 23299 | O116: =Assumptions!S50 -> 11206.08093 | P116: =Assumptions!T50 -> 40005.70892 | Q116: =Assumptions!U50 -> 40805.8231 | R116: =Assumptions!V50 -> 41621.93956 | S116: =Assumptions!W50 -> 42454.37835 | T116: =Assumptions!X50 -> 43303.46592 | U116: =Assumptions!Y50 -> 44169.53524 | V116: =Assumptions!Z50 -> 45052.92594 | W116: =Assumptions!AA50 -> 45953.98446
C117: Total Revenues | I117: =SUM(I115:I116) -> 97750 | J117: =SUM(J115:J116) -> 200109 | K117: 305530 | L117: 373683 | M117: 424541 | N117: 325644 | O117: 132144.0809 | P117: 503009.8421 | Q117: 504138.1645 | R117: 484900.7475 | S117: 463674.2995 | T117: 440258.6116 | U117: 414433.4279 | V117: 385956.4403 | W117: 354561.0827
B119: Operating Expense
C120: Flight Hours | I120: =Assumptions!M20 -> 39404 | J120: =Assumptions!N20 -> 55220 | K120: =Assumptions!O20 -> 76346 | L120: =Assumptions!P20 -> 84058 | M120: =Assumptions!Q20 -> 91690 | N120: =Assumptions!R20 -> 70721 | O120: =Assumptions!S20 -> 28288.4 | P120: =Assumptions!T20 -> 108300.5021 | Q120: =Assumptions!U20 -> 108377.2727 | R120: =Assumptions!V20 -> 103686.5851 | S120: =Assumptions!W20 -> 98526.82878 | T120: =Assumptions!X20 -> 92851.09679 | U120: =Assumptions!Y20 -> 86607.79162 | V120: =Assumptions!Z20 -> 79740.15592 | W120: =Assumptions!AA20 -> 72185.75665
C121: Flight Expense per Hour | I121: =Assumptions!M60 -> 0.9455639021 | J121: =Assumptions!N60 -> 1.138663528 | K121: =Assumptions!O60 -> 1.514342598 | L121: =Assumptions!P60 -> 2.007839825 | M121: =Assumptions!Q60 -> 1.63873923 | N121: =Assumptions!R60 -> 1.78459015 | O121: =Assumptions!S60 -> 1.78459015 | P121: =Assumptions!T60 -> 1.4 | Q121: =Assumptions!U60 -> 1.25 | R121: =Assumptions!V60 -> 1.25 | S121: =Assumptions!W60 -> 1.25 | T121: =Assumptions!X60 -> 1.25 | U121: =Assumptions!Y60 -> 1.25 | V121: =Assumptions!Z60 -> 1.25 | W121: =Assumptions!AA60 -> 1.25
C122: Maintenance Expense per Hour | I122: =Assumptions!M70 -> 0.5612120597 | J122: =Assumptions!N70 -> 0.9404744658 | K122: =Assumptions!O70 -> 0.8477457889 | L122: =Assumptions!P70 -> 1.229972162 | M122: =Assumptions!Q70 -> 1.255120515 | N122: =Assumptions!R70 -> 1.519096167 | O122: =Assumptions!S70 -> 1.519096167 | P122: =Assumptions!T70 -> 1.2 | Q122: =Assumptions!U70 -> 1.1 | R122: =Assumptions!V70 -> 1 | S122: =Assumptions!W70 -> 1 | T122: =Assumptions!X70 -> 1 | U122: =Assumptions!Y70 -> 1 | V122: =Assumptions!Z70 -> 1 | W122: =Assumptions!AA70 -> 1
C123: Fuel Expense per Hour | I123: =Assumptions!M80 -> 0.4189422394 | J123: =Assumptions!N80 -> 0.6981890619 | K123: =Assumptions!O80 -> 0.751342572 | L123: =Assumptions!P80 -> 0.6488139142 | M123: =Assumptions!Q80 -> 0.9021376377 | N123: =Assumptions!R80 -> 0.779047242 | O123: =Assumptions!S80 -> 0.779047242 | P123: =Assumptions!T80 -> 0.7946281868 | Q123: =Assumptions!U80 -> 0.8105207506 | R123: =Assumptions!V80 -> 0.8267311656 | S123: =Assumptions!W80 -> 0.8432657889 | T123: =Assumptions!X80 -> 0.8601311047 | U123: =Assumptions!Y80 -> 0.8773337267 | V123: =Assumptions!Z80 -> 0.8948804013 | W123: =Assumptions!AA80 -> 0.9127780093
C124: SG&A Expense per Revenue | I124: =Assumptions!M90 -> 0.04447994619 | J124: =Assumptions!N90 -> 0.0491145097 | K124: =Assumptions!O90 -> 0.04452816516 | L124: =Assumptions!P90 -> 0.06031095925 | M124: =Assumptions!Q90 -> 0.05638690033 | N124: =Assumptions!R90 -> 0.05903190064 | O124: =Assumptions!S90 -> 0.05903190064 | P124: =Assumptions!T90 -> 0.054 | Q124: =Assumptions!U90 -> 0.05 | R124: =Assumptions!V90 -> 0.045 | S124: =Assumptions!W90 -> 0.045 | T124: =Assumptions!X90 -> 0.045 | U124: =Assumptions!Y90 -> 0.045 | V124: =Assumptions!Z90 -> 0.045 | W124: =Assumptions!AA90 -> 0.045
C125: Bad Debt Expense per Revenue | I125: =Assumptions!M93 -> 0.01636466829 | J125: =Assumptions!N93 -> 0.007952705308 | K125: =Assumptions!O93 -> 0.007484542792 | L125: =Assumptions!P93 -> 0.005180799323 | M125: =Assumptions!Q93 -> 0.002604374628 | N125: =Assumptions!R93 -> 0.005401114621 | O125: =Assumptions!S93 -> 0.005 | P125: =Assumptions!T93 -> 0.005 | Q125: =Assumptions!U93 -> 0.005 | R125: =Assumptions!V93 -> 0.005 | S125: =Assumptions!W93 -> 0.005 | T125: =Assumptions!X93 -> 0.005 | U125: =Assumptions!Y93 -> 0.005 | V125: =Assumptions!Z93 -> 0.005 | W125: =Assumptions!AA93 -> 0.005
C127: Flight Expense | I127: =I121*I120 -> 37259 | J127: =J121*J120 -> 62877 | K127: 115614 | L127: 168775 | M127: 150256 | N127: 126208 | O127: 50483.2 | P127: 151620.7029 | Q127: 135471.5909 | R127: 129608.2314 | S127: 123158.536 | T127: 116063.871 | U127: 108259.7395 | V127: 99675.1949 | W127: 90232.19581
C128: Maintenance Expense | I128: =I120*I122 -> 22114 | J128: =J120*J122 -> 51933 | K128: 64722 | L128: 103389 | M128: 115082 | N128: 107432 | O128: 42972.8 | P128: 129960.6025 | Q128: 119215 | R128: 103686.5851 | S128: 98526.82878 | T128: 92851.09679 | U128: 86607.79162 | V128: 79740.15592 | W128: 72185.75665
C129: Fuel Expense | I129: =I123*I120 -> 16508 | J129: =J123*J120 -> 38554 | K129: 57362 | L129: 54538 | M129: 82717 | N129: 55095 | O129: 22038 | P129: 86058.63161 | Q129: 87842.02842 | R129: 85720.93137 | S129: 83084.30399 | T129: 79864.11645 | U129: 75983.93658 | V129: 71357.90273 | W129: 65889.57125
C130: SG&A Expense | I130: =I124*I115 -> 4232 | J130: =J124*J115 -> 9554 | K130: 13273 | L130: 21676 | M130: 21889 | N130: 17848 | O130: 7139.2 | P130: 25002.22319 | Q130: 23166.61707 | R130: 19947.54636 | S130: 18954.89645 | T130: 17862.98156 | U130: 16661.87517 | V130: 15340.65815 | W130: 13887.31942
C131: Bad Debt Expense | I131: =I125*I115 -> 1557 | J131: =J125*J115 -> 1547 | K131: 2231 | L131: 1862 | M131: 1011 | N131: 1633 | O131: 604.69 | P131: 2315.020666 | Q131: 2316.661707 | R131: 2216.39404 | S131: 2106.099606 | T131: 1984.775729 | U131: 1851.319464 | V131: 1704.517572 | W131: 1543.035491
D132: Total Operating Expense | I132: =SUM(I127:I131) -> 81670 | J132: 164465 | K132: 253202 | L132: 350240 | M132: 370955 | N132: 308216 | O132: 123237.89 | P132: 394957.1809 | Q132: 368011.8981 | R132: 341179.6883 | S132: 325830.6648 | T132: 308626.8415 | U132: 289364.6624 | V132: 267818.4293 | W132: 243737.8786
C134: Historic EBITDA | I134: =I117-I132 -> 16080 | J134: =J117-J132 -> 35644 | K134: 52328 | L134: 23443 | M134: 53586 | N134: 17428 | O134: 8906.19093 | P134: 108052.6612 | Q134: 136126.2665 | R134: 143721.0592 | S134: 137843.6347 | T134: 131631.7701 | U134: 125068.7656 | V134: 118138.0111 | W134: 110823.2041
C135: Computed EBITDA | I135: =I72+I68 -> 16080 | J135: =J72+J68 -> 35644 | K135: 52328 | L135: 23443 | M135: 53586 | N135: 17428 | O135: 0 | P135: 0 | Q135: 0 | R135: 0 | S135: 0 | T135: 0 | U135: 0 | V135: 0 | W135: 0
C136: Difference | I136: =I134-I135 -> 0 | J136: =J134-J135 -> 0 | K136: 0 | L136: 0 | M136: 0 | N136: 0 | O136: 8906.19093 | P136: 108052.6612 | Q136: 136126.2665 | R136: 143721.0592 | S136: 137843.6347 | T136: 131631.7701 | U136: 125068.7656 | V136: 118138.0111 | W136: 110823.2041
C137: Check | H137: =AND(I137:W137) -> TRUE | I137: =IF(I5,I136=0,TRUE) -> TRUE | J137: =IF(J5,J136=0,TRUE) -> TRUE | K137: TRUE | L137: TRUE | M137: TRUE | N137: TRUE | O137: TRUE | P137: TRUE | Q137: TRUE | R137: TRUE | S137: TRUE | T137: TRUE | U137: TRUE | V137: TRUE | W137: TRUE
C139: Total Capital Expenditures | I139: =Assumptions!M104*I4+Assumptions!M106 -> 0 | J139: =Assumptions!N104*J4+Assumptions!N106 -> 0 | K139: =Assumptions!O104*K4+Assumptions!O106 -> 0 | L139: =Assumptions!P104*L4+Assumptions!P106 -> 0 | M139: =Assumptions!Q104*M4+Assumptions!Q106 -> 0 | N139: =Assumptions!R104*N4+Assumptions!R106 -> 56000 | O139: =Assumptions!S104*O4+Assumptions!S106 -> 6229.6 | P139: =Assumptions!T104*P4+Assumptions!T106 -> 25000 | Q139: =Assumptions!U104*Q4+Assumptions!U106 -> 25000 | R139: =Assumptions!V104*R4+Assumptions!V106 -> 25000 | S139: =Assumptions!W104*S4+Assumptions!W106 -> 20000 | T139: =Assumptions!X104*T4+Assumptions!X106 -> 20000 | U139: =Assumptions!Y104*U4+Assumptions!Y106 -> 20000 | V139: =Assumptions!Z104*V4+Assumptions!Z106 -> 20000 | W139: =Assumptions!AA104*W4+Assumptions!AA106 -> 20000
A141: Depreciation
B142: Depreciation Rate | I142: =Assumptions!M114 -> 0.07672108786 | J142: =Assumptions!N114 -> 0.0977356056 | K142: =Assumptions!O114 -> 0.06095585347 | L142: =Assumptions!P114 -> 0.06807132422 | M142: =Assumptions!Q114 -> 0.08587043254 | N142: =Assumptions!R114 -> 0.1022636124 | O142: =Assumptions!S114 -> 0.1022636124 | P142: =Assumptions!T114 -> 0.1022636124 | Q142: =Assumptions!U114 -> 0.1022636124 | R142: =Assumptions!V114 -> 0.1022636124 | S142: =Assumptions!W114 -> 0.1022636124 | T142: =Assumptions!X114 -> 0.1022636124 | U142: =Assumptions!Y114 -> 0.1022636124 | V142: =Assumptions!Z114 -> 0.1022636124 | W142: =Assumptions!AA114 -> 0.1022636124
B143: Retirement Rate | I143: =Assumptions!M117 ->  | J143: =Assumptions!N117 ->  | K143: =Assumptions!O117 ->  | L143: =Assumptions!P117 ->  | M143: =Assumptions!Q117 ->  | N143: =Assumptions!R117 -> 0 | O143: =Assumptions!S117 -> 0 | P143: =Assumptions!T117 -> 0.03331171075 | Q143: =Assumptions!U117 -> 0.03664288183 | R143: =Assumptions!V117 -> 0.04030717001 | S143: =Assumptions!W117 -> 0.04433788701 | T143: =Assumptions!X117 -> 0.04877167571 | U143: =Assumptions!Y117 -> 0.05364884328 | V143: =Assumptions!Z117 -> 0.05901372761 | W143: =Assumptions!AA117 -> 0.06491510037
B144: Plant Balance | I144: =Depreciation!$E$8 -> 385702.752 | J144: =Depreciation!$E$8 -> 385702.752 | K144: =Depreciation!$E$8 -> 385702.752 | L144: =Depreciation!$E$8 -> 385702.752 | M144: =Depreciation!$E$8 -> 385702.752 | N144: =Depreciation!$E$8 -> 385702.752 | O144: =Depreciation!$E$8 -> 385702.752 | P144: =Depreciation!$E$8 -> 385702.752 | Q144: =Depreciation!$E$8 -> 385702.752 | R144: =Depreciation!$E$8 -> 385702.752 | S144: =Depreciation!$E$8 -> 385702.752 | T144: =Depreciation!$E$8 -> 385702.752 | U144: =Depreciation!$E$8 -> 385702.752 | V144: =Depreciation!$E$8 -> 385702.752 | W144: =Depreciation!$E$8 -> 385702.752
B146: Existing Plant
C147: Opening Balance | I147: =H149 -> 0 | J147: =I149 -> 117295 | K147: 127098 | L147: 226541 | M147: 336798.253 | N147: 375625.891 | O147: 385702.752 | P147: 385702.752 | Q147: 372854.3335 | R147: 358721.0731 | S147: 343174.4867 | T147: 326073.2417 | U147: 307261.8722 | V147: 286569.3657 | W147: 263807.6085
C148: Less: Retirements | I148: =IFERROR(I144*I143,0) -> 0 | J148: =IFERROR(J144*J143,0) -> 0 | K148: 0 | L148: 0 | M148: 0 | N148: 0 | O148: 0 | P148: 12848.41851 | Q148: 14133.26036 | R148: 15546.5864 | S148: 17101.24504 | T148: 18811.36954 | U148: 20692.5065 | V148: 22761.75714 | W148: 25037.93286
C149: Closing Balance | I149: =IF(I5,I25+I28+I29,I147-I148) -> 117295 | J149: =IF(J5,J25+J28+J29,J147-J148) -> 127098 | K149: 226541 | L149: 336798.253 | M149: 375625.891 | N149: 385702.752 | O149: 385702.752 | P149: 372854.3335 | Q149: 358721.0731 | R149: 343174.4867 | S149: 326073.2417 | T149: 307261.8722 | U149: 286569.3657 | V149: 263807.6085 | W149: 238769.6757
C150: Depreciation | I150: =IF(I5,I68,I147*I142*I4) -> 8999 | J150: =IF(J5,J68,J147*J142*J4) -> 12422 | K150: 13809 | L150: 20972 | M150: 32091 | N150: 26468 | O150: 11269.53049 | P150: 39443.35672 | Q150: 38129.43103 | R150: 36684.11277 | S150: 35094.26269 | T150: 33345.42759 | U150: 31421.70899 | V150: 29305.61853 | W150: 26977.91902
B152: Accumulated Depreciation
C153: Opening Balance | I153: =H156 -> 0 | J153: =I156 -> 0 | K153: 0 | L153: 0 | M153: 81246.881 | N153: 109707.512 | O153: 113883.56 | P153: 125153.0905 | Q153: 151748.0287 | R153: 175744.1994 | S153: 196881.7257 | T153: 214874.7434 | U153: 229408.8014 | V153: 240138.0039 | W153: 246681.8653
C154: Add: Depreciation | I154: =I150 -> 8999 | J154: =J150 -> 12422 | K154: 13809 | L154: 20972 | M154: 32091 | N154: 26468 | O154: 11269.53049 | P154: 39443.35672 | Q154: 38129.43103 | R154: 36684.11277 | S154: 35094.26269 | T154: 33345.42759 | U154: 31421.70899 | V154: 29305.61853 | W154: 26977.91902
C155: Less: Retirements | I155: =I148 -> 0 | J155: =J148 -> 0 | K155: 0 | L155: 0 | M155: 0 | N155: 0 | O155: 0 | P155: 12848.41851 | Q155: 14133.26036 | R155: 15546.5864 | S155: 17101.24504 | T155: 18811.36954 | U155: 20692.5065 | V155: 22761.75714 | W155: 25037.93286
C156: Closing Balance | I156: =IF(I5,I26,I153+I154-I155) -> 0 | J156: =IF(J5,J26,J153+J154-J155) -> 0 | K156: 0 | L156: 81246.881 | M156: 109707.512 | N156: 113883.56 | O156: 125153.0905 | P156: 151748.0287 | Q156: 175744.1994 | R156: 196881.7257 | S156: 214874.7434 | T156: 229408.8014 | U156: 240138.0039 | V156: 246681.8653 | W156: 248621.8515
B158: New Plant for Maintenance Cap Exp
C159: Opening Balance | I159: =H161 -> 0 | J159: =I161 -> 0 | K159: 0 | L159: 0 | M159: 0 | N159: 0 | O159: 56000 | P159: 62229.6 | Q159: 87229.6 | R159: 112229.6 | S159: 137229.6 | T159: 157229.6 | U159: 177229.6 | V159: 197229.6 | W159: 217229.6
C160: Add: New Expenditures | I160: =I139 -> 0 | J160: =J139 -> 0 | K160: 0 | L160: 0 | M160: 0 | N160: 56000 | O160: 6229.6 | P160: 25000 | Q160: 25000 | R160: 25000 | S160: 20000 | T160: 20000 | U160: 20000 | V160: 20000 | W160: 20000
C161: Closing Balance | I161: =SUM(I159:I160) -> 0 | J161: =SUM(J159:J160) -> 0 | K161: 0 | L161: 0 | M161: 0 | N161: 56000 | O161: 62229.6 | P161: 87229.6 | Q161: 112229.6 | R161: 137229.6 | S161: 157229.6 | T161: 177229.6 | U161: 197229.6 | V161: 217229.6 | W161: 237229.6
C162: Depreciation Rate | I162: =Assumptions!M120 -> 0.07692307692 | J162: =Assumptions!N120 -> 0.07692307692 | K162: =Assumptions!O120 -> 0.07692307692 | L162: =Assumptions!P120 -> 0.07692307692 | M162: =Assumptions!Q120 -> 0.07692307692 | N162: =Assumptions!R120 -> 0.07692307692 | O162: =Assumptions!S120 -> 0.08333333333 | P162: =Assumptions!T120 -> 0.09090909091 | Q162: =Assumptions!U120 -> 0.1 | R162: =Assumptions!V120 -> 0.1111111111 | S162: =Assumptions!W120 -> 0.125 | T162: =Assumptions!X120 -> 0.1428571429 | U162: =Assumptions!Y120 -> 0.1666666667 | V162: =Assumptions!Z120 -> 0.2 | W162: =Assumptions!AA120 -> 0.25
C163: Depreciation Expense | I163: =I162*I159 -> 0 | J163: =J162*J159 -> 0 | K163: 0 | L163: 0 | M163: 0 | N163: 0 | O163: 4666.666667 | P163: 5657.236364 | Q163: 8722.96 | R163: 12469.95556 | S163: 17153.7 | T163: 22461.37143 | U163: 29538.26667 | V163: 39445.92 | W163: 54307.4
C164: Accumulated Deprecaiton | I164: =H164+I163 -> 0 | J164: =I164+J163 -> 0 | K164: 0 | L164: 0 | M164: 0 | N164: 0 | O164: 4666.666667 | P164: 10323.90303 | Q164: 19046.86303 | R164: 31516.81859 | S164: 48670.51859 | T164: 71131.89001 | U164: 100670.1567 | V164: 140116.0767 | W164: 194423.4767
B166: Total Depreciation Expenditure | I166: =I163+I150 -> 8999 | J166: =J163+J150 -> 12422 | K166: 13809 | L166: 20972 | M166: 32091 | N166: 26468 | O166: 15936.19716 | P166: 45100.59308 | Q166: 46852.39103 | R166: 49154.06833 | S166: 52247.96269 | T166: 55806.79902 | U166: 60959.97566 | V166: 68751.53853 | W166: 81285.31902
A168: Working Capital
B169: A/R as Pct of Revenue | I169: =Assumptions!M125 -> 0.05604092072 | J169: =Assumptions!N125 -> 0.1790374246 | K169: =Assumptions!O125 -> 0.1470232056 | L169: =Assumptions!P125 -> 0.2479751126 | M169: =Assumptions!Q125 -> 0.1649826589 | N169: =Assumptions!R125 -> 0.1451266721 | O169: =Assumptions!S125 -> 0.15 | P169: =Assumptions!T125 -> 0.15 | Q169: =Assumptions!U125 -> 0.15 | R169: =Assumptions!V125 -> 0.15 | S169: =Assumptions!W125 -> 0.15 | T169: =Assumptions!X125 -> 0.15 | U169: =Assumptions!Y125 -> 0.15 | V169: =Assumptions!Z125 -> 0.15 | W169: =Assumptions!AA125 -> 0.15
B170: A/R Amount | I170: =I169*I117/I4 -> 5478 | J170: =J169*J117/J4 -> 35827 | K170: 44920 | L170: 92664.084 | M170: 70041.903 | N170: 66163.482 | O170: 69375.64249 | P170: 75451.47632 | Q170: 75620.72468 | R170: 72735.11213 | S170: 69551.14493 | T170: 66038.79175 | U170: 62165.01419 | V170: 57893.46605 | W170: 53184.1624
B172: Inventory Percent of Total Expense | I172: =Assumptions!M129 -> 0 | J172: =Assumptions!N129 -> 0 | K172: =Assumptions!O129 -> 0 | L172: =Assumptions!P129 -> 0.03520686958 | M172: =Assumptions!Q129 -> 0.05591551536 | N172: =Assumptions!R129 -> 0.05706655166 | O172: =Assumptions!S129 -> 0.05706655166 | P172: =Assumptions!T129 -> 0.05706655166 | Q172: =Assumptions!U129 -> 0.05706655166 | R172: =Assumptions!V129 -> 0.05706655166 | S172: =Assumptions!W129 -> 0.05706655166 | T172: =Assumptions!X129 -> 0.05706655166 | U172: =Assumptions!Y129 -> 0.05706655166 | V172: =Assumptions!Z129 -> 0.05706655166 | W172: =Assumptions!AA129 -> 0.05706655166
B173: Total Inventory | I173: =I172*I132/I4 -> 0 | J173: =J172*J132/J4 -> 0 | K173: 0 | L173: 12330.854 | M173: 20742.14 | N173: 24624.354 | O173: 24614.66496 | P173: 22538.84437 | Q173: 21001.16999 | R173: 19469.94831 | S173: 18594.03246 | T173: 17612.2696 | U173: 16513.04345 | V173: 15283.47423 | W173: 13909.28024
B175: Pre-Paid Pct of Revenue | I175: =Assumptions!M133 -> 0 | J175: =Assumptions!N133 -> 0 | K175: =Assumptions!O133 -> 0 | L175: =Assumptions!P133 -> 0.0240696767 | M175: =Assumptions!Q133 -> 0.03261480046 | N175: =Assumptions!R133 -> 0.03142251091 | O175: =Assumptions!S133 -> 0.03142251091 | P175: =Assumptions!T133 -> 0.03142251091 | Q175: =Assumptions!U133 -> 0.03142251091 | R175: =Assumptions!V133 -> 0.03142251091 | S175: =Assumptions!W133 -> 0.03142251091 | T175: =Assumptions!X133 -> 0.03142251091 | U175: =Assumptions!Y133 -> 0.03142251091 | V175: =Assumptions!Z133 -> 0.03142251091 | W175: =Assumptions!AA133 -> 0.03142251091
B176: Total Prepaid | I176: =I175*I117/I4 -> 0 | J176: =J175*J117/J4 -> 0 | K176: 0 | L176: 8994.429 | M176: 13846.32 | N176: 14325.573 | O176: 14533.04589 | P176: 15805.83225 | Q176: 15841.28698 | R176: 15236.79903 | S176: 14569.81074 | T176: 13834.03103 | U176: 13022.53891 | V176: 12127.72046 | W176: 11141.19949
B178: Accounts Payable Percent of Op Cost | I178: =Assumptions!M137 -> 0 | J178: =Assumptions!N137 -> 0 | K178: =Assumptions!O137 -> 0 | L178: =Assumptions!P137 -> 0.1900022013 | M178: =Assumptions!Q137 -> 0.1244023669 | N178: =Assumptions!R137 -> 0.1156399733 | O178: =Assumptions!S137 -> 0.1156399733 | P178: =Assumptions!T137 -> 0.1156399733 | Q178: =Assumptions!U137 -> 0.1156399733 | R178: =Assumptions!V137 -> 0.1156399733 | S178: =Assumptions!W137 -> 0.1156399733 | T178: =Assumptions!X137 -> 0.1156399733 | U178: =Assumptions!Y137 -> 0.1156399733 | V178: =Assumptions!Z137 -> 0.1156399733 | W178: =Assumptions!AA137 -> 0.1156399733
B179: Accounts Payable | I179: =I178*I132/I4 -> 0 | J179: =J178*J132/J4 -> 0 | K179: 0 | L179: 66546.371 | M179: 46147.68 | N179: 49898.926 | O179: 49879.29207 | P179: 45672.83784 | Q179: 42556.88605 | R179: 39454.01003 | S179: 37679.04937 | T179: 35689.5997 | U179: 33462.12182 | V179: 30970.516 | W179: 28185.84177
B181: Accrued Expenses Percent of Op Cost | I181: =Assumptions!M141 -> 0.1557487449 | J181: =Assumptions!N141 -> 0.1977806828 | K181: =Assumptions!O141 -> 0.2288962962 | L181: =Assumptions!P141 -> 0.05808299452 | M181: =Assumptions!Q141 -> 0.06516392285 | N181: =Assumptions!R141 -> 0.05323146986 | O181: =Assumptions!S141 -> 0.05323146986 | P181: =Assumptions!T141 -> 0.05323146986 | Q181: =Assumptions!U141 -> 0.05323146986 | R181: =Assumptions!V141 -> 0.05323146986 | S181: =Assumptions!W141 -> 0.05323146986 | T181: =Assumptions!X141 -> 0.05323146986 | U181: =Assumptions!Y141 -> 0.05323146986 | V181: =Assumptions!Z141 -> 0.05323146986 | W181: =Assumptions!AA141 -> 0.05323146986
B182: Accrued Expenses | I182: =I181*I132/I4 -> 12720 | J182: =J181*J132/J4 -> 32528 | K182: 57957 | L182: 20342.988 | M182: 24172.883 | N182: 22969.507 | O182: 22960.46909 | P182: 21024.15127 | Q182: 19589.81426 | R182: 18161.49629 | S182: 17344.44521 | T182: 16428.66041 | U182: 15403.3063 | V182: 14256.36864 | W182: 12974.52554
B184: Deferred Revenue Percent | I184: =Assumptions!M145 -> 0 | J184: =Assumptions!N145 -> 0 | K184: =Assumptions!O145 -> 0 | L184: =Assumptions!P145 -> 0 | M184: =Assumptions!Q145 -> 0.001872681319 | N184: =Assumptions!R145 -> 0.006661358504 | O184: =Assumptions!S145 -> 0.006661358504 | P184: =Assumptions!T145 -> 0.006661358504 | Q184: =Assumptions!U145 -> 0.006661358504 | R184: =Assumptions!V145 -> 0.006661358504 | S184: =Assumptions!W145 -> 0.006661358504 | T184: =Assumptions!X145 -> 0.006661358504 | U184: =Assumptions!Y145 -> 0.006661358504 | V184: =Assumptions!Z145 -> 0.006661358504 | W184: =Assumptions!AA145 -> 0.006661358504
B185: Deferred Revenues | I185: =I184*I117/I4 -> 0 | J185: =J184*J117/J4 -> 0 | K185: 0 | L185: 0 | M185: 795.03 | N185: 3036.924 | O185: 3080.90684 | P185: 3350.728889 | Q185: 3358.245049 | R185: 3230.097718 | S185: 3088.700738 | T185: 2932.720446 | U185: 2760.689639 | V185: 2570.994216 | W185: 2361.858483
B187: Total Working Capital | I187: =I170+I173+I176-I179-I182-I185 -> -7242 | J187: =J170+J173+J176-J179-J182-J185 -> 3299 | K187: -13037 | L187: 27100.008 | M187: 33514.77 | N187: 29208.052 | O187: 32602.68533 | P187: 43748.43494 | Q187: 46958.23628 | R187: 46596.25542 | S187: 44602.79281 | T187: 42434.11181 | U187: 40074.47879 | V187: 37506.78187 | W187: 34712.41634
C188: Change in Working Capital | I188: =I187-H187 -> -7242 | J188: =J187-I187 -> 10541 | K188: -16336 | L188: 40137.008 | M188: 6414.762 | N188: -4306.718 | O188: 3394.633328 | P188: 11145.74961 | Q188: 3209.801345 | R188: -361.98086 | S188: -1993.462607 | T188: -2168.681009 | U188: -2359.633012 | V188: -2567.69692 | W188: -2794.36553
A190: Other Assets and Liabilities
B191: Total Other Assets | I191: =Assumptions!M150 -> 0 | J191: =Assumptions!N150 -> 0 | K191: =Assumptions!O150 -> 0 | L191: =Assumptions!P150 -> 6964.122 | M191: =Assumptions!Q150 -> 6435.156 | N191: =Assumptions!R150 -> 6224.541 | O191: =Assumptions!S150 -> 6224.541 | P191: =Assumptions!T150 -> 6224.541 | Q191: =Assumptions!U150 -> 6224.541 | R191: =Assumptions!V150 -> 6224.541 | S191: =Assumptions!W150 -> 6224.541 | T191: =Assumptions!X150 -> 6224.541 | U191: =Assumptions!Y150 -> 6224.541 | V191: =Assumptions!Z150 -> 6224.541 | W191: =Assumptions!AA150 -> 6224.541
B192: Total Other Liabilities | I192: =Assumptions!M152 -> 0 | J192: =Assumptions!N152 -> 0 | K192: =Assumptions!O152 -> 0 | L192: =Assumptions!P152 -> 0 | M192: =Assumptions!Q152 -> 0 | N192: =Assumptions!R152 -> 30255.291 | O192: =Assumptions!S152 -> 30255.291 | P192: =Assumptions!T152 -> 30255.291 | Q192: =Assumptions!U152 -> 30255.291 | R192: =Assumptions!V152 -> 30255.291 | S192: =Assumptions!W152 -> 30255.291 | T192: =Assumptions!X152 -> 30255.291 | U192: =Assumptions!Y152 -> 30255.291 | V192: =Assumptions!Z152 -> 30255.291 | W192: =Assumptions!AA152 -> 30255.291
B193: Restricted Cash | I193: =Assumptions!M154 -> 0 | J193: =Assumptions!N154 -> 0 | K193: =Assumptions!O154 -> 0 | L193: =Assumptions!P154 -> 0 | M193: =Assumptions!Q154 -> 795.03 | N193: =Assumptions!R154 -> 14036.924 | O193: =Assumptions!S154 -> 14036.924 | P193: =Assumptions!T154 -> 14036.924 | Q193: =Assumptions!U154 -> 14036.924 | R193: =Assumptions!V154 -> 14036.924 | S193: =Assumptions!W154 -> 14036.924 | T193: =Assumptions!X154 -> 14036.924 | U193: =Assumptions!Y154 -> 14036.924 | V193: =Assumptions!Z154 -> 14036.924 | W193: =Assumptions!AA154 -> 14036.924
B195: Other Income | I195: =Assumptions!M156 -> 2900 | J195: =Assumptions!N156 -> 1524 | K195: =Assumptions!O156 -> 2840 | L195: =Assumptions!P156 -> 19856 | M195: =Assumptions!Q156 -> 1267 | N195: =Assumptions!R156 -> -103 | O195: =Assumptions!S156 -> 0 | P195: =Assumptions!T156 -> 0 | Q195: =Assumptions!U156 -> 0 | R195: =Assumptions!V156 -> 0 | S195: =Assumptions!W156 -> 0 | T195: =Assumptions!X156 -> 0 | U195: =Assumptions!Y156 -> 0 | V195: =Assumptions!Z156 -> 0 | W195: =Assumptions!AA156 -> 0
A197: Financing
B198: Cash Balance
C199: Opening Balance | I199: =H202 -> 0 | J199: =I202 -> 1000 | K199: 1000 | L199: 1000 | M199: 1091.96 | N199: 2324.353 | O199: 3282.142 | P199: 2312.521416 | Q199: 2515.049211 | R199: 2520.690823 | S199: 53901.06086 | T199: 126605.19 | U199: 198995.4635 | V199: 312393.726 | W199: 422471.2458
C200: Add: Cash increase from Positive Cash Flow | I200: =I263 -> 20826 | J200: =J263 -> 0 | K200: 0 | L200: 0 | M200: 0 | N200: 0 | O200: 0 | P200: 0 | Q200: 0 | R200: 51380.37004 | S200: 72704.12917 | T200: 72390.27349 | U200: 113398.2625 | V200: 110077.5198 | W200: 106291.707
C201: Less: Cash reduction with Negative Cash Flow | I201: =I260 -> -1000 | J201: =J260 -> 0 | K201: 0 | L201: -91.96 | M201: -1232.393 | N201: -957.789 | O201: 969.6205837 | P201: -202.5277943 | Q201: -5.641612007 | R201: 0 | S201: 0 | T201: 0 | U201: 0 | V201: 0 | W201: 0
C202: Closing Balance | I202: =IF(I5,I9,I199+I200-I201) -> 1000 | J202: =IF(J5,J9,J199+J200-J201) -> 1000 | K202: 1000 | L202: 1091.96 | M202: 2324.353 | N202: 3282.142 | O202: 2312.521416 | P202: 2515.049211 | Q202: 2520.690823 | R202: 53901.06086 | S202: 126605.19 | T202: 198995.4635 | U202: 312393.726 | V202: 422471.2458 | W202: 528762.9528
C204: Interest Income Rate | I204: =Assumptions!M165*'Financial Model'!I4 -> 0 | J204: =Assumptions!N165*'Financial Model'!J4 -> 0.036 | K204: =Assumptions!O165*'Financial Model'!K4 -> 0.113 | L204: =Assumptions!P165*'Financial Model'!L4 -> 0.3011529857 | M204: =Assumptions!Q165*'Financial Model'!M4 -> 0.1799900887 | N204: =Assumptions!R165*'Financial Model'!N4 -> 0.03415131941 | O204: =Assumptions!S165*'Financial Model'!O4 -> 0.008571428571 | P204: =Assumptions!T165*'Financial Model'!P4 -> 0.03 | Q204: =Assumptions!U165*'Financial Model'!Q4 -> 0.03 | R204: =Assumptions!V165*'Financial Model'!R4 -> 0.03 | S204: =Assumptions!W165*'Financial Model'!S4 -> 0.03 | T204: =Assumptions!X165*'Financial Model'!T4 -> 0.03 | U204: =Assumptions!Y165*'Financial Model'!U4 -> 0.03 | V204: =Assumptions!Z165*'Financial Model'!V4 -> 0.03 | W204: =Assumptions!AA165*'Financial Model'!W4 -> 0.03
C205: Interest Income | I205: =IF(I5,I75,I204*I199) -> 0 | J205: =IF(J5,J75,J204*J199) -> 36 | K205: 113 | L205: 315 | M205: 379 | N205: 349 | O205: 28.13264571 | P205: 69.37564249 | Q205: 75.45147632 | R205: 75.62072468 | S205: 1617.031826 | T205: 3798.155701 | U205: 5969.863906 | V205: 9371.811781 | W205: 12674.13737
C207: Minimum Cash Balance as Pct of Revenue | I207: =Assumptions!M179 -> 0.01023017903 | J207: =Assumptions!N179 -> 0.004997276484 | K207: =Assumptions!O179 -> 0.003273001015 | L207: =Assumptions!P179 -> 0.002922155945 | M207: =Assumptions!Q179 -> 0.00547497886 | N207: =Assumptions!R179 -> 0.007199233343 | O207: =Assumptions!S179 -> 0.005 | P207: =Assumptions!T179 -> 0.005 | Q207: =Assumptions!U179 -> 0.005 | R207: =Assumptions!V179 -> 0.005 | S207: =Assumptions!W179 -> 0.005 | T207: =Assumptions!X179 -> 0.005 | U207: =Assumptions!Y179 -> 0.005 | V207: =Assumptions!Z179 -> 0.005 | W207: =Assumptions!AA179 -> 0.005
C208: Minimum Cash Balance | I208: =I207*I117 -> 1000 | J208: =J207*J117/J4 -> 1000 | K208: 1000 | L208: 1091.96 | M208: 2324.353 | N208: 3282.142 | O208: 2312.521416 | P208: =P207*P117/P4 -> 2515.049211 | Q208: 2520.690823 | R208: 2424.503738 | S208: 2318.371498 | T208: 2201.293058 | U208: 2072.16714 | V208: 1929.782202 | W208: 1772.805413
C210: Test for Cash Balance | I210: =I199-I208 -> -1000 | J210: =J199-J208 -> 0 | K210: 0 | L210: -91.96 | M210: -1232.393 | N210: -957.789 | O210: 969.6205837 | P210: -202.5277943 | Q210: -5.641612007 | R210: 96.18708492 | S210: 51582.68936 | T210: 124403.897 | U210: 196923.2964 | V210: 310463.9438 | W210: 420698.4404
B212: Existing Debt Balance
C213: Base Amount | I213: =Assumptions!$E$182 -> 250000 | J213: =Assumptions!$E$182 -> 250000 | K213: =Assumptions!$E$182 -> 250000 | L213: =Assumptions!$E$182 -> 250000 | M213: =Assumptions!$E$182 -> 250000 | N213: =Assumptions!$E$182 -> 250000 | O213: =Assumptions!$E$182 -> 250000 | P213: =Assumptions!$E$182 -> 250000 | Q213: =Assumptions!$E$182 -> 250000 | R213: =Assumptions!$E$182 -> 250000 | S213: =Assumptions!$E$182 -> 250000 | T213: =Assumptions!$E$182 -> 250000 | U213: =Assumptions!$E$182 -> 250000 | V213: =Assumptions!$E$182 -> 250000 | W213: =Assumptions!$E$182 -> 250000
C215: Opening Balance | I215: =H218 -> 0 | J215: =I218 -> 0 | K215: 0 | L215: 0 | M215: 0 | N215: 0 | O215: 250000 | P215: 208333.3333 | Q215: 166666.6667 | R215: 125000 | S215: 83333.33333 | T215: 41666.66667 | U215: 0 | V215: 0 | W215: 0
C216: Add: New Debt Issued | I216: =(I2=Assumptions!$E$186)*Assumptions!$E$182 -> 0 | J216: =(J2=Assumptions!$E$186)*Assumptions!$E$182 -> 0 | K216: =(K2=Assumptions!$E$186)*Assumptions!$E$182 -> 0 | L216: =(L2=Assumptions!$E$186)*Assumptions!$E$182 -> 0 | M216: =(M2=Assumptions!$E$186)*Assumptions!$E$182 -> 0 | N216: =(N2=Assumptions!$E$186)*Assumptions!$E$182 -> 250000 | P216: =(P2=Assumptions!$E$186)*Assumptions!$E$182 -> 0 | Q216: =(Q2=Assumptions!$E$186)*Assumptions!$E$182 -> 0 | R216: =(R2=Assumptions!$E$186)*Assumptions!$E$182 -> 0 | S216: =(S2=Assumptions!$E$186)*Assumptions!$E$182 -> 0 | T216: =(T2=Assumptions!$E$186)*Assumptions!$E$182 -> 0 | U216: =(U2=Assumptions!$E$186)*Assumptions!$E$182 -> 0 | V216: =(V2=Assumptions!$E$186)*Assumptions!$E$182 -> 0 | W216: =(W2=Assumptions!$E$186)*Assumptions!$E$182 -> 0
C217: Less: Scheduled Debt Repaid | I217: =NOT(I5)*Assumptions!$E$184 -> 0 | J217: =NOT(J5)*Assumptions!$E$184 -> 0 | K217: =NOT(K5)*Assumptions!$E$184 -> 0 | L217: =NOT(L5)*Assumptions!$E$184 -> 0 | M217: =NOT(M5)*Assumptions!$E$184 -> 0 | N217: =NOT(N5)*Assumptions!$E$184 -> 0 | O217: =MIN(NOT(O5)*Assumptions!$E$184,O215) -> 41666.66667 | P217: =MIN(NOT(P5)*Assumptions!$E$184,P215) -> 41666.66667 | Q217: =MIN(NOT(Q5)*Assumptions!$E$184,Q215) -> 41666.66667 | R217: =MIN(NOT(R5)*Assumptions!$E$184,R215) -> 41666.66667 | S217: =MIN(NOT(S5)*Assumptions!$E$184,S215) -> 41666.66667 | T217: =MIN(NOT(T5)*Assumptions!$E$184,T215) -> 41666.66667 | U217: =MIN(NOT(U5)*Assumptions!$E$184,U215) -> 0 | V217: =MIN(NOT(V5)*Assumptions!$E$184,V215) -> 0 | W217: =MIN(NOT(W5)*Assumptions!$E$184,W215) -> 0
C218: Closing Balance | I218: =I215+I216-I217 -> 0 | J218: =J215+J216-J217 -> 0 | K218: 0 | L218: 0 | M218: 0 | N218: 250000 | O218: 208333.3333 | P218: 166666.6667 | Q218: 125000 | R218: 83333.33333 | S218: 41666.66667 | T218: 0 | U218: 0 | V218: 0 | W218: 0
C219: Interest Expense | I219: =Assumptions!$E$185*I215 -> 0 | J219: =Assumptions!$E$185*J215 -> 0 | K219: =Assumptions!$E$185*K215 -> 0 | L219: =Assumptions!$E$185*L215 -> 0 | M219: =Assumptions!$E$185*M215 -> 0 | N219: =Assumptions!$E$185*N215 -> 0 | O219: =Assumptions!$E$185*O215 -> 21250 | P219: =Assumptions!$E$185*P215 -> 17708.33333 | Q219: =Assumptions!$E$185*Q215 -> 14166.66667 | R219: =Assumptions!$E$185*R215 -> 10625 | S219: =Assumptions!$E$185*S215 -> 7083.333333 | T219: =Assumptions!$E$185*T215 -> 3541.666667 | U219: =Assumptions!$E$185*U215 -> 0 | V219: =Assumptions!$E$185*V215 -> 0 | W219: =Assumptions!$E$185*W215 -> 0
B221: Remaining Debt Balance
C222: Opening Balance | I222: =H225 -> 0 | J222: =I225 -> 80010 | K222: 84936 | L222: 137405 | M222: 220471.593 | N222: 238350.842 | O222: 5092.981 | P222: 67853.62352 | Q222: 61222.42205 | R222: 14273.38629 | S222: 0 | T222: 0 | U222: 0 | V222: 0 | W222: 0
C223: Less: Reduction in Debt from Positive Cash | I223: =I261 -> 0 | J223: =J261 -> 19882 | K223: 63496 | L223: 0 | M223: 26805.238 | N223: 0 | O223: 0 | P223: 6833.72926 | Q223: 46954.67738 | R223: 14273.38629 | S223: 0 | T223: 0 | U223: 0 | V223: 0 | W223: 0
C224: Add: New Debt from Negative Cash Flow | I224: =I264 -> 0 | J224: =J264 -> 0 | K224: 0 | L224: 11678.968 | M224: 1232.393 | N224: 55066.071 | O224: 62760.64252 | P224: 202.5277943 | Q224: 5.641612007 | R224: 0 | S224: 0 | T224: 0 | U224: 0 | V224: 0 | W224: 0
C225: Closing Balance | I225: =IF(I5,I56-I218,I222-I223+I224) -> 80010 | J225: =IF(J5,J56-J218,J222-J223+J224) -> 84936 | K225: 137405 | L225: 220471.593 | M225: 238350.842 | N225: 5092.981 | O225: 67853.62352 | P225: 61222.42205 | Q225: 14273.38629 | R225: 0 | S225: 0 | T225: 0 | U225: 0 | V225: 0 | W225: 0
C227: Interest Expense Rate | I227: =Assumptions!M171*I4 -> 0.05494313211 | J227: =Assumptions!N171*J4 -> 0.08222084804 | K227: =Assumptions!O171*K4 -> 0.0730499548 | L227: =Assumptions!P171*L4 -> 0.08418544434 | M227: =Assumptions!Q171*M4 -> 0.09594997246 | N227: =Assumptions!R171*N4 -> 0.0814236558 | O227: =Assumptions!S171*O4 -> 0.02428571429 | P227: =Assumptions!T171*P4 -> 0.085 | Q227: =Assumptions!U171*Q4 -> 0.085 | R227: =Assumptions!V171*R4 -> 0.085 | S227: =Assumptions!W171*S4 -> 0.085 | T227: =Assumptions!X171*T4 -> 0.085 | U227: =Assumptions!Y171*U4 -> 0.085 | V227: =Assumptions!Z171*V4 -> 0.085 | W227: =Assumptions!AA171*W4 -> 0.085
C228: Total Interest Expense | I228: =IF(I5,-I74,I227*I222)+I219 -> 4396 | J228: =IF(J5,-J74,J227*J222)+J219 -> 6781 | K228: 8121 | L228: 15064 | M228: 22012 | N228: 20089 | O228: 21373.68668 | P228: 23475.89133 | Q228: 19370.57254 | R228: 11838.23783 | S228: 7083.333333 | T228: 3541.666667 | U228: 0 | V228: 0 | W228: 0
C230: Minority Interest Percent of Income | I230: =Assumptions!M177 -> 0.07591763653 | J230: =Assumptions!N177 -> 0.08099550025 | K230: =Assumptions!O177 -> 0.08269617103 | L230: =Assumptions!P177 -> 0.4080232251 | M230: =Assumptions!Q177 -> 1.015057573 | N230: =Assumptions!R177 -> -0.06436312017 | O230: =Assumptions!S177 -> 0.07 | P230: =Assumptions!T177 -> 0.07 | Q230: =Assumptions!U177 -> 0.07 | R230: =Assumptions!V177 -> 0.07 | S230: =Assumptions!W177 -> 0.07 | T230: =Assumptions!X177 -> 0.07 | U230: =Assumptions!Y177 -> 0.07 | V230: =Assumptions!Z177 -> 0.07 | W230: =Assumptions!AA177 -> 0.07
A232: Profit and Loss
C233: Revenues | I233: =I117 -> 97750 | J233: 200109 | K233: 305530 | L233: 373683 | M233: 424541 | N233: 325644 | O233: 132144.0809 | P233: 503009.8421 | Q233: 504138.1645 | R233: 484900.7475 | S233: 463674.2995 | T233: 440258.6116 | U233: 414433.4279 | V233: 385956.4403 | W233: 354561.0827
C234: Less: Cash Operating Cost | I234: =I132 -> 81670 | J234: 164465 | K234: 253202 | L234: 350240 | M234: 370955 | N234: 308216 | O234: 123237.89 | P234: 394957.1809 | Q234: 368011.8981 | R234: 341179.6883 | S234: 325830.6648 | T234: 308626.8415 | U234: 289364.6624 | V234: 267818.4293 | W234: 243737.8786
D235: EBITDA | I235: =I233-I234 -> 16080 | J235: =J233-J234 -> 35644 | K235: 52328 | L235: 23443 | M235: 53586 | N235: 17428 | O235: 8906.19093 | P235: 108052.6612 | Q235: 136126.2665 | R235: 143721.0592 | S235: 137843.6347 | T235: 131631.7701 | U235: 125068.7656 | V235: 118138.0111 | W235: 110823.2041
C236: Less: Depreciation | I236: =I166 -> 8999 | J236: 12422 | K236: 13809 | L236: 20972 | M236: 32091 | N236: 26468 | O236: 15936.19716 | P236: 45100.59308 | Q236: 46852.39103 | R236: 49154.06833 | S236: 52247.96269 | T236: 55806.79902 | U236: 60959.97566 | V236: 68751.53853 | W236: 81285.31902
... 131 more rows

Sheet Depreciation
E2: 1997 | F2: =E2+1 -> 1998 | G2: =F2+1 -> 1999 | H2: =G2+1 -> 2000 | I2: 2001 | J2: 2002 | K2: 2003 | L2: 2004 | M2: 2005 | N2: 2006 | O2: 2007 | P2: 2008 | Q2: 2009 | R2: 2010
D4: Plane Life | E4: 13
D5: Historic Growth | E5: 0.1
D6: Units | E6: 1
D8: Plant in Service | E8: ='Financial Model'!N25+'Financial Model'!N29+'Financial Model'!N28 -> 385702.752
D9: Accum Depreciation | E9: ='Financial Model'!N26 -> 113883.56
D10: Net | E10: =E8-E9 -> 271819.192 | F10: =E10/E8 -> 0.7047374969
D12: Retirement | E12: 1
D13: Retirement Rate | F13: 0.03331171075 | G13: =F13*(1+$E$5) -> 0.03664288183 | H13: =G13*(1+$E$5) -> 0.04030717001 | I13: 0.04433788701 | J13: 0.04877167571 | K13: 0.05364884328 | L13: 0.05901372761 | M13: 0.06491510037 | N13: 0.07140661041 | O13: 0.07854727145 | P13: 0.08640199859 | Q13: =P13*(1+$E$5) -> 0.09504219845 | R13: 0.1045464183
D15: Plant In Service
D16: Opening Balance | F16: =E18 -> 385702.752 | G16: =F18 -> 372854.3335 | H16: 358721.0731 | I16: 343174.4867 | J16: 326073.2417 | K16: 307261.8722 | L16: 286569.3657 | M16: 263807.6085 | N16: 238769.6757 | O16: 211227.9495 | P16: 180932.0507 | Q16: =P18 -> 147606.5621 | R16: 110948.5246
D17: Less: Retirements | F17: =$E$8*F13 -> 12848.41851 | G17: =$E$8*G13 -> 14133.26036 | H17: 15546.5864 | I17: 17101.24504 | J17: 18811.36954 | K17: 20692.5065 | L17: 22761.75714 | M17: 25037.93286 | N17: 27541.72615 | O17: 30295.89876 | P17: 33325.48864 | Q17: 36658.0375 | R17: 40323.84125
D18: Closing Balance | E18: =E8 -> 385702.752 | F18: =F16-F17 -> 372854.3335 | G18: =G16-G17 -> 358721.0731 | H18: 343174.4867 | I18: 326073.2417 | J18: 307261.8722 | K18: 286569.3657 | L18: 263807.6085 | M18: 238769.6757 | N18: 211227.9495 | O18: 180932.0507 | P18: 147606.5621 | Q18: =Q16-Q17 -> 110948.5246 | R18: =R16-R17 -> 70624.68336
D19: Depreciation | E19: =1/$E$4 -> 0.07692307692 | F19: =$E$19*F16 -> 29669.44246 | G19: =$E$19*G16 -> 28681.10258 | H19: 27593.9287 | I19: 26398.03744 | J19: 25082.55705 | K19: 23635.52863 | L19: 22043.79736 | M19: 20292.89296 | N19: 18366.89813 | O19: 16248.30381 | P19: 13917.85006 | Q19: =$E$19*Q16 -> 11354.35093 | R19: 8534.501893
D21: Accumulated Depreciation
D22: Opening Balance | F22: =E25 -> 113883.56 | G22: =F25 -> 130704.584 | H22: 145252.4262 | I22: 157299.7685 | J22: 166596.5609 | K22: 172867.7484 | L22: 175810.7705 | M22: 175092.8107 | N22: 170347.7708 | O22: 161172.9428 | P22: 147125.3479 | Q22: 127717.7093 | R22: 102414.0227
D23: Add: Depreciation | F23: =F19 -> 29669.44246 | G23: =G19 -> 28681.10258 | H23: 27593.9287 | I23: 26398.03744 | J23: 25082.55705 | K23: 23635.52863 | L23: 22043.79736 | M23: 20292.89296 | N23: 18366.89813 | O23: 16248.30381 | P23: 13917.85006 | Q23: 11354.35093 | R23: 8534.501893
D24: Less: Retirements | F24: =F17 -> 12848.41851 | G24: =G17 -> 14133.26036 | H24: 15546.5864 | I24: 17101.24504 | J24: 18811.36954 | K24: 20692.5065 | L24: 22761.75714 | M24: 25037.93286 | N24: 27541.72615 | O24: 30295.89876 | P24: 33325.48864 | Q24: 36658.0375 | R24: 40323.84125
D25: Closing Balance | E25: =E9 -> 113883.56 | F25: =F22+F23-F24 -> 130704.584 | G25: =G22+G23-G24 -> 145252.4262 | H25: 157299.7685 | I25: 166596.5609 | J25: 172867.7484 | K25: 175810.7705 | L25: 175092.8107 | M25: 170347.7708 | N25: 161172.9428 | O25: 147125.3479 | P25: 127717.7093 | Q25: 102414.0227 | R25: 70624.68336
D27: Net Plant | F27: =F18-F25 -> 242149.7495 | G27: =G18-G25 -> 213468.647 | H27: 185874.7183 | I27: 159476.6808 | J27: 134394.1238 | K27: 110758.5951 | L27: 88714.79778 | M27: 68421.90482 | N27: 50055.00669 | O27: 33806.70288 | P27: 19888.85283 | Q27: 8534.501893 | R27: 0

Sheet Airline Fleet
A1: NUMBER NUMBER OPERATED
A2: OWNED BY LEASED BY IN
A3: MANUFACTURER THE THE REVENUE MAXIMUM NUMBER STAGE III
A4: AND MODEL SERIES(1) COMPANY COMPANY SERVICE CONFIGURATION PAYLOAD(2) COMPLIANT(3)
C6: Company | F6: In Revenue | G6: Out of | M6: Noise | N6: Not
B7: Model | C7: Owned | D7: Leased | E7: Total | F7: Service | G7: Service | I7: Min | J7: Max | K7: Average | M7: Complaint | N7: Compliant
A9: Boeing 747............ | B9: 200 | C9: 6 | D9: 0 | E9: =C9+D9 -> 6 | F9: 2 | G9: =C9+D9-F9 -> 4 | H9: Freight | I9: 213000 | J9: 245000 | K9: =AVERAGE(I9:J9) -> 229000 | M9: 6 | N9: =C9+D9-M9 -> 0
A10: Boeing 747............ | B10: 100 | C10: 3 | D10: 0 | E10: =C10+D10 -> 3 | F10: 2 | G10: =C10+D10-F10 -> 1 | H10: Freight | I10: 218000 | J10: 218000 | K10: =AVERAGE(I10:J10) -> 218000 | M10: 3 | N10: =C10+D10-M10 -> 0
A11: Boeing 747............ | B11: 100 | C11: 2 | D11: 0 | E11: 2 | F11: 2 | G11: 0 | H11: Passenger | I11: 476 | J11: 476 | K11: 476 | M11: 2 | N11: 0
A12: Lockheed L-1011....... | B12: 200 | C12: 6 | D12: 0 | E12: 6 | F12: 6 | G12: 0 | H12: Freight | I12: 125000 | J12: 125000 | K12: 125000 | M12: 6 | N12: 0
A13: Lockheed L-1011....... | B13: 200 | C13: 2 | D13: 0 | E13: 2 | F13: 2 | G13: 0 | H13: Passenger | I13: 354 | J13: 354 | K13: 354 | M13: 2 | N13: 0
A14: Douglas DC-8.......... | B14: 60 | C14: 11 | D14: 0 | E14: 11 | F14: 11 | G14: 0 | H14: Freight | I14: 80000 | J14: 112000 | M14: 6 | N14: 5
A15: Douglas DC-8.......... | B15: 50 | C15: 9 | D15: 0 | E15: 9 | F15: 8 | G15: 1 | H15: Freight | I15: 58500 | J15: 97300 | K15: 77900 | M15: 0 | N15: 9
A16: Boeing 727............ | B16: 200 | C16: 24 | D16: 4 | E16: 28 | F16: 28 | G16: 0 | H16: Freight | I16: 44000 | J16: 63000 | K16: 53500 | M16: 10 | N16: 18
A17: Boeing 727............ | B17: 200 | C17: 4 | D17: 0 | E17: 4 | F17: 0 | G17: 4 | H17: Passenger | I17: 160 | J17: 160 | K17: 160 | M17: 1 | N17: 3
A18: Boeing 727............ | B18: 100 | C18: 1 | D18: 1 | E18: 2 | F18: 2 | G18: 0 | H18: Freight | I18: 40000 | J18: 54500 | K18: 47250 | M18: 0 | N18: 2
A19: Douglas DC-9.......... | B19: 15 | C19: 5 | D19: 0 | E19: 5 | F19: 5 | G19: 0 | H19: Freight | I19: 22000 | J19: 24000 | K19: 23000 | M19: 3 | N19: 2
B20: 0 | C20: 0 | D20: 0 | E20: 0 | F20: 0 | G20: 0
A21: Total......... | C21: =SUM(C9:C20) -> 73 | D21: =SUM(D9:D20) -> 5 | E21: =SUM(E9:E20) -> 78 | F21: =SUM(F9:F20) -> 68 | G21: =SUM(G9:G20) -> 10 | M21: =SUM(M9:M20) -> 39 | N21: =SUM(N9:N20) -> 39
H23: Concentration of Fleet After Merger measured in Capacity
A24: Total 747 | E24: =SUM(E9:E11) -> 11
E25: 6 | I25: 747 | J25: 727 | K25: L-1011 | L25: DC | M25: Total
E26: =E24*E25 -> 66 | H26: Average Capacity | I26: =SUMPRODUCT(K9:K10*E9:E10)/SUM(E9:E10) -> 225333.3333 | J26: =K16 -> 53500 | K26: =K12 -> 125000 | L26: =SUMPRODUCT(K14:K15,E14:E15)/SUM(E14:E15) -> 35055 | M26: =SUM(I26:L26) -> 438888.3333
H27: Total Planes | I27: =SUM(E9:E11) -> 11 | J27: =SUM(E16:E18) -> 34 | K27: =SUM(E12:E13) -> 8 | L27: =F19+F14+F15 -> 24 | M27: =SUM(I27:L27) -> 77
A28: Total 727 | E28: =SUM(E16:E18) -> 34 | H28: Before Merger | J28: 9 | L28: 5 | M28: 14
H29: Kalitta | I29: =I27-I28 -> 11 | J29: =J27-J28 -> 25 | K29: 8 | L29: 19 | M29: 63
I31: =I25 -> 747 | J31: =J25 -> 727 | K31: =K25 -> L-1011 | L31: =L25 -> DC | M31: Total
H32: After Merger | I32: =I26*I27 -> 2478666.667 | J32: =J26*J27 -> 1819000 | K32: =K26*K27 -> 1000000 | L32: =L26*L27 -> 841320 | M32: =SUM(I32:L32) -> 6138986.667
H33: Before Merger | J33: 425250 | K33: 0 | L33: 65000 | M33: =SUM(I33:L33) -> 490250
H34: Kalitta | I34: =I32 -> 2478666.667 | J34: =J32 -> 1819000 | K34: 1000000 | L34: 841320 | M34: 6138986.667
